{"text_format":"3","workbook":"xlsx","n_sheets":4,"sheets":["Evidencija rezultata","Vaš uspjeh","Postavke","Izračuni"],"not_rendered":{"defined_names":3,"comments":1},"read":"whole","date_system":"1900"}

{"sheet":"Evidencija rezultata","index":0,"n_rows":14,"n_cols":6,"rows_kept":14}
[null,"Ovdje unesite rezultate"]
[]
[null,null,"Predmet","Vrsta","Opis","Rezultat"]
[null,null,"Moderni francuski","Domaća zadaća","Povijest 2. svjetskog rata",{"v":0.8,"d":"80%"}]
[null,null,"Napredno programiranje u jeziku Java","Polusemestralni ispit",null,{"v":0.75,"d":"75%"}]
[null,null,"Španjolski","Domaća zadaća",null,{"v":0.5,"d":"50%"}]
[null,null,"Teorijska fizika","Domaća zadaća",null,{"v":0.95,"d":"95%"}]
[null,null,"Moderni francuski","Domaća zadaća","Povijest 2. svjetskog rata",{"v":0.9,"d":"90%"}]
[null,null,"Moderni francuski","Domaća zadaća","Stranice 30. – 41.",{"v":0.8,"d":"80%"}]
[null,null,"Sastavak","Esej","Rasprava",{"v":0.95,"d":"95%"}]
[null,null,"Matematika 1","Domaća zadaća","Stranice 21. i 26.",{"v":0.8,"d":"80%"}]
[null,null,"Matematika 2","Domaća zadaća","Stranice 15. i 18.",{"v":0.85,"d":"85%"}]
[null,null,"Matematika 1","Domaća zadaća","Stranice 34. – 36.",{"v":0.8,"d":"80%"}]
[null,null,"Matematika 2","Test",null,{"v":0.95,"d":"95%"}]

{"sheet":"Vaš uspjeh","index":1,"n_rows":31,"n_cols":8,"rows_kept":31}
[null,"Vaš uspjeh"]
[]
[null,null,"Ukupne vrijednosti"]
[null,null,{"$f":"\"Sati: \"&SUM(tblKlase[Broj sati])","v":"Sati: 24"},{"$f":"AVERAGE(D7:D31)","v":{"v":0.8104761904761906,"d":"81%"}},{"$f":"AVERAGE(E7:E31)","v":{"v":2.7142857142857144,"d":"2.71"}},{"$f":"SUM(F7:F31)","v":{"v":2.625,"d":"2.63"}},{"$f":"IFERROR(HLOOKUP(D4,Popis_mapiranja_prosjeka_ocjena,2),\"\")","v":"B-"}]
[]
[null,null,"Predmeti","%","Prosjek","Ponderirani prosjek ocjena","Slovo","Ukupni uspjeh"]
[null,null,{"$f":"Izračuni!C6","v":"Moderni francuski"},{"$f":"Izračuni!AL6","v":{"v":0.8333333333333334,"d":"83%"}},{"$f":"Izračuni!AM6","v":{"v":3,"d":"3.00"}},{"$f":"IFERROR(E7*Postavke!D9/SUM(tblKlase[Broj sati]),\"\")","v":{"v":0.375,"d":"0.38"}},{"$f":"Izračuni!AN6","v":"B"}]
[null,null,{"$f":"Izračuni!C7","v":"Teorijska fizika"},{"$f":"Izračuni!AL7","v":{"v":0.95,"d":"95%"}},{"$f":"Izračuni!AM7","v":{"v":4,"d":"4.00"}},{"$f":"IFERROR(E8*Postavke!D10/SUM(tblKlase[Broj sati]),\"\")","v":{"v":0.5,"d":"0.50"}},{"$f":"Izračuni!AN7","v":"A"}]
[null,null,{"$f":"Izračuni!C8","v":"Matematika 1"},{"$f":"Izračuni!AL8","v":{"v":0.8000000000000002,"d":"80%"}},{"$f":"Izračuni!AM8","v":2.67},{"$f":"IFERROR(E9*Postavke!D11/SUM(tblKlase[Broj sati]),\"\")","v":{"v":0.445,"d":"0.45"}},{"$f":"Izračuni!AN8","v":"B-"}]
[null,null,{"$f":"Izračuni!C9","v":"Matematika 2"},{"$f":"Izračuni!AL9","v":{"v":0.89,"d":"89%"}},{"$f":"Izračuni!AM9","v":3.33},{"$f":"IFERROR(E10*Postavke!D12/SUM(tblKlase[Broj sati]),\"\")","v":{"v":0.555,"d":"0.56"}},{"$f":"Izračuni!AN9","v":"B+"}]
[null,null,{"$f":"Izračuni!C10","v":"Napredno programiranje u jeziku Java"},{"$f":"Izračuni!AL10","v":{"v":0.7500000000000001,"d":"75%"}},{"$f":"Izračuni!AM10","v":{"v":2,"d":"2.00"}},{"$f":"IFERROR(E11*Postavke!D13/SUM(tblKlase[Broj sati]),\"\")","v":{"v":0.4166666666666667,"d":"0.42"}},{"$f":"Izračuni!AN10","v":"C"}]
[null,null,{"$f":"Izračuni!C11","v":"Španjolski"},{"$f":"Izračuni!AL11","v":{"v":0.5,"d":"50%"}},{"$f":"Izračuni!AM11","v":{"v":0,"d":"0.00"}},{"$f":"IFERROR(E12*Postavke!D14/SUM(tblKlase[Broj sati]),\"\")","v":{"v":0,"d":"0.00"}},{"$f":"Izračuni!AN11","v":"F"}]
[null,null,{"$f":"Izračuni!C12","v":"Sastavak"},{"$f":"Izračuni!AL12","v":{"v":0.95,"d":"95%"}},{"$f":"Izračuni!AM12","v":{"v":4,"d":"4.00"}},{"$f":"IFERROR(E13*Postavke!D15/SUM(tblKlase[Broj sati]),\"\")","v":{"v":0.3333333333333333,"d":"0.33"}},{"$f":"Izračuni!AN12","v":"A"}]
[null,null,{"$f":"Izračuni!C13","v":""},{"$f":"Izračuni!AL13","v":""},{"$f":"Izračuni!AM13","v":""},{"$f":"IFERROR(E14*Postavke!D16/SUM(tblKlase[Broj sati]),\"\")","v":""},{"$f":"Izračuni!AN13","v":""}]
[null,null,{"$f":"Izračuni!C14","v":""},{"$f":"Izračuni!AL14","v":""},{"$f":"Izračuni!AM14","v":""},{"$f":"IFERROR(E15*Postavke!D17/SUM(tblKlase[Broj sati]),\"\")","v":""},{"$f":"Izračuni!AN14","v":""}]
[null,null,{"$f":"Izračuni!C15","v":""},{"$f":"Izračuni!AL15","v":""},{"$f":"Izračuni!AM15","v":""},{"$f":"IFERROR(E16*Postavke!D18/SUM(tblKlase[Broj sati]),\"\")","v":""},{"$f":"Izračuni!AN15","v":""}]
[null,null,{"$f":"Izračuni!C16","v":""},{"$f":"Izračuni!AL16","v":""},{"$f":"Izračuni!AM16","v":""},{"$f":"IFERROR(E17*Postavke!D19/SUM(tblKlase[Broj sati]),\"\")","v":""},{"$f":"Izračuni!AN16","v":""}]
[null,null,{"$f":"Izračuni!C17","v":""},{"$f":"Izračuni!AL17","v":""},{"$f":"Izračuni!AM17","v":""},{"$f":"IFERROR(E18*Postavke!D20/SUM(tblKlase[Broj sati]),\"\")","v":""},{"$f":"Izračuni!AN17","v":""}]
[null,null,{"$f":"Izračuni!C18","v":""},{"$f":"Izračuni!AL18","v":""},{"$f":"Izračuni!AM18","v":""},{"$f":"IFERROR(E19*Postavke!D21/SUM(tblKlase[Broj sati]),\"\")","v":""},{"$f":"Izračuni!AN18","v":""}]
[null,null,{"$f":"Izračuni!C19","v":""},{"$f":"Izračuni!AL19","v":""},{"$f":"Izračuni!AM19","v":""},{"$f":"IFERROR(E20*Postavke!D22/SUM(tblKlase[Broj sati]),\"\")","v":""},{"$f":"Izračuni!AN19","v":""}]
[null,null,{"$f":"Izračuni!C20","v":""},{"$f":"Izračuni!AL20","v":""},{"$f":"Izračuni!AM20","v":""},{"$f":"IFERROR(E21*Postavke!D23/SUM(tblKlase[Broj sati]),\"\")","v":""},{"$f":"Izračuni!AN20","v":""}]
[null,null,{"$f":"Izračuni!C21","v":""},{"$f":"Izračuni!AL21","v":""},{"$f":"Izračuni!AM21","v":""},{"$f":"IFERROR(E22*Postavke!D24/SUM(tblKlase[Broj sati]),\"\")","v":""},{"$f":"Izračuni!AN21","v":""}]
[null,null,{"$f":"Izračuni!C22","v":""},{"$f":"Izračuni!AL22","v":""},{"$f":"Izračuni!AM22","v":""},{"$f":"IFERROR(E23*Postavke!D25/SUM(tblKlase[Broj sati]),\"\")","v":""},{"$f":"Izračuni!AN22","v":""}]
[null,null,{"$f":"Izračuni!C23","v":""},{"$f":"Izračuni!AL23","v":""},{"$f":"Izračuni!AM23","v":""},{"$f":"IFERROR(E24*Postavke!D26/SUM(tblKlase[Broj sati]),\"\")","v":""},{"$f":"Izračuni!AN23","v":""}]
[null,null,{"$f":"Izračuni!C24","v":""},{"$f":"Izračuni!AL24","v":""},{"$f":"Izračuni!AM24","v":""},{"$f":"IFERROR(E25*Postavke!D27/SUM(tblKlase[Broj sati]),\"\")","v":""},{"$f":"Izračuni!AN24","v":""}]
[null,null,{"$f":"Izračuni!C25","v":""},{"$f":"Izračuni!AL25","v":""},{"$f":"Izračuni!AM25","v":""},{"$f":"IFERROR(E26*Postavke!D28/SUM(tblKlase[Broj sati]),\"\")","v":""},{"$f":"Izračuni!AN25","v":""}]
[null,null,{"$f":"Izračuni!C26","v":""},{"$f":"Izračuni!AL26","v":""},{"$f":"Izračuni!AM26","v":""},{"$f":"IFERROR(E27*Postavke!D29/SUM(tblKlase[Broj sati]),\"\")","v":""},{"$f":"Izračuni!AN26","v":""}]
[null,null,{"$f":"Izračuni!C27","v":""},{"$f":"Izračuni!AL27","v":""},{"$f":"Izračuni!AM27","v":""},{"$f":"IFERROR(E28*Postavke!D30/SUM(tblKlase[Broj sati]),\"\")","v":""},{"$f":"Izračuni!AN27","v":""}]
[null,null,{"$f":"Izračuni!C28","v":""},{"$f":"Izračuni!AL28","v":""},{"$f":"Izračuni!AM28","v":""},{"$f":"IFERROR(E29*Postavke!D31/SUM(tblKlase[Broj sati]),\"\")","v":""},{"$f":"Izračuni!AN28","v":""}]
[null,null,{"$f":"Izračuni!C29","v":""},{"$f":"Izračuni!AL29","v":""},{"$f":"Izračuni!AM29","v":""},{"$f":"IFERROR(E30*Postavke!D32/SUM(tblKlase[Broj sati]),\"\")","v":""},{"$f":"Izračuni!AN29","v":""}]
[null,null,{"$f":"Izračuni!C30","v":""},{"$f":"Izračuni!AL30","v":""},{"$f":"Izračuni!AM30","v":""},{"$f":"IFERROR(E31*Postavke!D33/SUM(tblKlase[Broj sati]),\"\")","v":""},{"$f":"Izračuni!AN30","v":""}]

{"sheet":"Postavke","index":2,"n_rows":15,"n_cols":16,"rows_kept":15,"merged":[[5,2,5,15]]}
[null,"Postavke"]
[null,null,"Mapiranje rezultata i prosjeka ocjena"]
[null,null,"Postotak",{"v":0,"d":"0%"},{"v":0.6,"d":"60%"},{"v":0.63,"d":"63%"},{"v":0.67,"d":"67%"},{"v":0.7,"d":"70%"},{"v":0.73,"d":"73%"},{"v":0.77,"d":"77%"},{"v":0.8,"d":"80%"},{"v":0.83,"d":"83%"},{"v":0.87,"d":"87%"},{"v":0.9,"d":"90%"},{"v":0.93,"d":"93%"},{"v":0.97,"d":"97%"}]
[null,null,"Slovna ocjena","F","D-","D","D+","C-","C","C+","B-","B","B+","A-","A","A+"]
[null,null,"Prosjek",0,0.67,1,1.33,1.67,2,2.33,2.67,3,3.33,3.67,4,4]
[]
[null,null,"Ponderirani rezultati za do 25 predmeta"]
[null,null,"Predmeti koje slušate","Broj sati","Domaća zadaća","Esej","Test","Projekt","Polusemestralni ispit","Završni ispit","Drugo","% ukupnoga"]
[null,null,"Moderni francuski",{"v":3,"d":"3.0"},{"v":0.1,"d":"10%"},{"v":0.15,"d":"15%"},{"v":0.15,"d":"15%"},{"v":0.1,"d":"10%"},{"v":0.2,"d":"20%"},{"v":0.3,"d":"30%"},null,{"$f":"SUM(tblKlase[[#This Row],[Domaća zadaća]:[Drugo]])","v":{"v":1,"d":"100%"}}]
[null,null,"Teorijska fizika",{"v":3,"d":"3.0"},{"v":0.15,"d":"15%"},{"v":0.15,"d":"15%"},{"v":0.1,"d":"10%"},{"v":0.1,"d":"10%"},{"v":0.15,"d":"15%"},{"v":0.3,"d":"30%"},{"v":0.05,"d":"5%"},{"$f":"SUM(tblKlase[[#This Row],[Domaća zadaća]:[Drugo]])","v":{"v":1,"d":"100%"}}]
[null,null,"Matematika 1",{"v":4,"d":"4.0"},{"v":0.1,"d":"10%"},{"v":0.15,"d":"15%"},{"v":0.15,"d":"15%"},{"v":0.1,"d":"10%"},{"v":0.2,"d":"20%"},{"v":0.3,"d":"30%"},null,{"$f":"SUM(tblKlase[[#This Row],[Domaća zadaća]:[Drugo]])","v":{"v":1,"d":"100%"}}]
[null,null,"Matematika 2",{"v":4,"d":"4.0"},{"v":0.15,"d":"15%"},{"v":0.15,"d":"15%"},{"v":0.1,"d":"10%"},{"v":0.1,"d":"10%"},{"v":0.15,"d":"15%"},{"v":0.3,"d":"30%"},{"v":0.05,"d":"5%"},{"$f":"SUM(tblKlase[[#This Row],[Domaća zadaća]:[Drugo]])","v":{"v":1,"d":"100%"}}]
[null,null,"Napredno programiranje u jeziku Java",{"v":5,"d":"5.0"},{"v":0.15,"d":"15%"},{"v":0.15,"d":"15%"},{"v":0.1,"d":"10%"},{"v":0.1,"d":"10%"},{"v":0.2,"d":"20%"},{"v":0.3,"d":"30%"},null,{"$f":"SUM(tblKlase[[#This Row],[Domaća zadaća]:[Drugo]])","v":{"v":1,"d":"100%"}}]
[null,null,"Španjolski",{"v":3,"d":"3.0"},{"v":0.1,"d":"10%"},{"v":0.15,"d":"15%"},{"v":0.17,"d":"17%"},{"v":0.13,"d":"13%"},{"v":0.2,"d":"20%"},{"v":0.2,"d":"20%"},{"v":0.05,"d":"5%"},{"$f":"SUM(tblKlase[[#This Row],[Domaća zadaća]:[Drugo]])","v":{"v":1,"d":"100%"}}]
[null,null,"Sastavak",{"v":2,"d":"2.0"},{"v":0.15,"d":"15%"},{"v":0.15,"d":"15%"},{"v":0.12,"d":"12%"},{"v":0.15,"d":"15%"},{"v":0.15,"d":"15%"},{"v":0.25,"d":"25%"},{"v":0.03,"d":"3%"},{"$f":"SUM(tblKlase[[#This Row],[Domaća zadaća]:[Drugo]])","v":{"v":1,"d":"100%"}}]

{"sheet":"Izračuni","index":3,"n_rows":657,"n_cols":40,"rows_kept":657,"hidden":true}
[null,"Izračuni"]
[null,null,"Na ovom radnom listu izračunavaju se ocjene i prosjek ocjena te bi trebao ostati skriven. Svaka promjena na njemu mogla bi dovesti do pogreške."]
[]
[null,null,"Trenutni popis predmeta","Rezultat (od 1)",{"$nulls":24},"Izračun ocjene"]
[null,null,"Predmet",1,2,3,4,5,6,7,8,9,10,11,12,13,14,15,16,17,18,19,20,21,22,23,24,25,{"$f":"tblKlase[[#Headers],[Domaća zadaća]]","v":"Domaća zadaća"},{"$f":"tblKlase[[#Headers],[Esej]]","v":"Esej"},{"$f":"tblKlase[[#Headers],[Test]]","v":"Test"},{"$f":"tblKlase[[#Headers],[Projekt]]","v":"Projekt"},{"$f":"tblKlase[[#Headers],[Polusemestralni ispit]]","v":"Polusemestralni ispit"},{"$f":"tblKlase[[#Headers],[Završni ispit]]","v":"Završni ispit"},{"$f":"tblKlase[[#Headers],[Drugo]]","v":"Drugo"},"Ukupno","Ukupno mogućih bodova","% ukupnog","Brojčana ocjena","Slovna ocjena"]
[null,null,{"$f":"IF(Postavke!C9=\"\",\"\",Postavke!C9)","v":"Moderni francuski"},{"$f":"IFERROR(INDEX(Tablica_rezultata_razrednih_odjeljenja[],MATCH($C6:$C30&D$5:AB$5,Izračuni!$C$33:$C$657,0),4),\"\")","v":{"v":0.8,"d":"80%"}},{"v":0.9,"d":"90%"},{"v":0.8,"d":"80%"},"","","","","","","","","","","","","","","","","","","","","","",{"$f":"IFERROR(AVERAGEIFS(Tablica_rezultata_razrednih_odjeljenja[Rezultat],Tablica_rezultata_razrednih_odjeljenja[Predmet],Izračuni!$C6,Tablica_rezultata_razrednih_odjeljenja[Vrsta],Izračuni!AC$5)*Postavke!E9,\"\")","v":0.08333333333333334},{"$f":"IFERROR(AVERAGEIFS(Tablica_rezultata_razrednih_odjeljenja[Rezultat],Tablica_rezultata_razrednih_odjeljenja[Predmet],Izračuni!$C6,Tablica_rezultata_razrednih_odjeljenja[Vrsta],Izračuni!AD$5)*Postavke!F9,\"\")","v":""},{"$f":"IFERROR(AVERAGEIFS(Tablica_rezultata_razrednih_odjeljenja[Rezultat],Tablica_rezultata_razrednih_odjeljenja[Predmet],Izračuni!$C6,Tablica_rezultata_razrednih_odjeljenja[Vrsta],Izračuni!AE$5)*Postavke!G9,\"\")","v":""},{"$f":"IFERROR(AVERAGEIFS(Tablica_rezultata_razrednih_odjeljenja[Rezultat],Tablica_rezultata_razrednih_odjeljenja[Predmet],Izračuni!$C6,Tablica_rezultata_razrednih_odjeljenja[Vrsta],Izračuni!AF$5)*Postavke!H9,\"\")","v":""},{"$f":"IFERROR(AVERAGEIFS(Tablica_rezultata_razrednih_odjeljenja[Rezultat],Tablica_rezultata_razrednih_odjeljenja[Predmet],Izračuni!$C6,Tablica_rezultata_razrednih_odjeljenja[Vrsta],Izračuni!AG$5)*Postavke!I9,\"\")","v":""},{"$f":"IFERROR(AVERAGEIFS(Tablica_rezultata_razrednih_odjeljenja[Rezultat],Tablica_rezultata_razrednih_odjeljenja[Predmet],Izračuni!$C6,Tablica_rezultata_razrednih_odjeljenja[Vrsta],Izračuni!AH$5)*Postavke!J9,\"\")","v":""},{"$f":"IFERROR(AVERAGEIFS(Tablica_rezultata_razrednih_odjeljenja[Rezultat],Tablica_rezultata_razrednih_odjeljenja[Predmet],Izračuni!$C6,Tablica_rezultata_razrednih_odjeljenja[Vrsta],Izračuni!AI$5)*Postavke!K9,\"\")","v":""},{"$f":"SUM(AC6:AI6)","v":0.08333333333333334},{"$f":"SUMIFS(Postavke!E9:K9,Izračuni!AC6:AI6,\">0\")","v":0.1},{"$f":"IFERROR(AJ6/AK6,\"\")","v":{"v":0.8333333333333334,"d":"83%"}},{"$f":"IFERROR(HLOOKUP(AL6,Popis_mapiranja_prosjeka_ocjena,3),\"\")","v":3},{"$f":"IFERROR(HLOOKUP(AL6,Popis_mapiranja_prosjeka_ocjena,2),\"\")","v":"B"}]
[null,null,{"$f":"IF(Postavke!C10=\"\",\"\",Postavke!C10)","v":"Teorijska fizika"},{"v":0.95,"d":"95%"},"","","","","","","","","","","","","","","","","","","","","","","","",{"$f":"IFERROR(AVERAGEIFS(Tablica_rezultata_razrednih_odjeljenja[Rezultat],Tablica_rezultata_razrednih_odjeljenja[Predmet],Izračuni!$C7,Tablica_rezultata_razrednih_odjeljenja[Vrsta],Izračuni!AC$5)*Postavke!E10,\"\")","v":0.1425},{"$f":"IFERROR(AVERAGEIFS(Tablica_rezultata_razrednih_odjeljenja[Rezultat],Tablica_rezultata_razrednih_odjeljenja[Predmet],Izračuni!$C7,Tablica_rezultata_razrednih_odjeljenja[Vrsta],Izračuni!AD$5)*Postavke!F10,\"\")","v":""},{"$f":"IFERROR(AVERAGEIFS(Tablica_rezultata_razrednih_odjeljenja[Rezultat],Tablica_rezultata_razrednih_odjeljenja[Predmet],Izračuni!$C7,Tablica_rezultata_razrednih_odjeljenja[Vrsta],Izračuni!AE$5)*Postavke!G10,\"\")","v":""},{"$f":"IFERROR(AVERAGEIFS(Tablica_rezultata_razrednih_odjeljenja[Rezultat],Tablica_rezultata_razrednih_odjeljenja[Predmet],Izračuni!$C7,Tablica_rezultata_razrednih_odjeljenja[Vrsta],Izračuni!AF$5)*Postavke!H10,\"\")","v":""},{"$f":"IFERROR(AVERAGEIFS(Tablica_rezultata_razrednih_odjeljenja[Rezultat],Tablica_rezultata_razrednih_odjeljenja[Predmet],Izračuni!$C7,Tablica_rezultata_razrednih_odjeljenja[Vrsta],Izračuni!AG$5)*Postavke!I10,\"\")","v":""},{"$f":"IFERROR(AVERAGEIFS(Tablica_rezultata_razrednih_odjeljenja[Rezultat],Tablica_rezultata_razrednih_odjeljenja[Predmet],Izračuni!$C7,Tablica_rezultata_razrednih_odjeljenja[Vrsta],Izračuni!AH$5)*Postavke!J10,\"\")","v":""},{"$f":"IFERROR(AVERAGEIFS(Tablica_rezultata_razrednih_odjeljenja[Rezultat],Tablica_rezultata_razrednih_odjeljenja[Predmet],Izračuni!$C7,Tablica_rezultata_razrednih_odjeljenja[Vrsta],Izračuni!AI$5)*Postavke!K10,\"\")","v":""},{"$f":"SUM(AC7:AI7)","v":0.1425},{"$f":"SUMIFS(Postavke!E10:K10,Izračuni!AC7:AI7,\">0\")","v":0.15},{"$f":"IFERROR(AJ7/AK7,\"\")","v":{"v":0.95,"d":"95%"}},4,"A"]
[null,null,{"$f":"IF(Postavke!C11=\"\",\"\",Postavke!C11)","v":"Matematika 1"},{"v":0.8,"d":"80%"},{"v":0.8,"d":"80%"},"","","","","","","","","","","","","","","","","","","","","","","",{"$f":"IFERROR(AVERAGEIFS(Tablica_rezultata_razrednih_odjeljenja[Rezultat],Tablica_rezultata_razrednih_odjeljenja[Predmet],Izračuni!$C8,Tablica_rezultata_razrednih_odjeljenja[Vrsta],Izračuni!AC$5)*Postavke!E11,\"\")","v":0.08000000000000002},{"$f":"IFERROR(AVERAGEIFS(Tablica_rezultata_razrednih_odjeljenja[Rezultat],Tablica_rezultata_razrednih_odjeljenja[Predmet],Izračuni!$C8,Tablica_rezultata_razrednih_odjeljenja[Vrsta],Izračuni!AD$5)*Postavke!F11,\"\")","v":""},{"$f":"IFERROR(AVERAGEIFS(Tablica_rezultata_razrednih_odjeljenja[Rezultat],Tablica_rezultata_razrednih_odjeljenja[Predmet],Izračuni!$C8,Tablica_rezultata_razrednih_odjeljenja[Vrsta],Izračuni!AE$5)*Postavke!G11,\"\")","v":""},{"$f":"IFERROR(AVERAGEIFS(Tablica_rezultata_razrednih_odjeljenja[Rezultat],Tablica_rezultata_razrednih_odjeljenja[Predmet],Izračuni!$C8,Tablica_rezultata_razrednih_odjeljenja[Vrsta],Izračuni!AF$5)*Postavke!H11,\"\")","v":""},{"$f":"IFERROR(AVERAGEIFS(Tablica_rezultata_razrednih_odjeljenja[Rezultat],Tablica_rezultata_razrednih_odjeljenja[Predmet],Izračuni!$C8,Tablica_rezultata_razrednih_odjeljenja[Vrsta],Izračuni!AG$5)*Postavke!I11,\"\")","v":""},{"$f":"IFERROR(AVERAGEIFS(Tablica_rezultata_razrednih_odjeljenja[Rezultat],Tablica_rezultata_razrednih_odjeljenja[Predmet],Izračuni!$C8,Tablica_rezultata_razrednih_odjeljenja[Vrsta],Izračuni!AH$5)*Postavke!J11,\"\")","v":""},{"$f":"IFERROR(AVERAGEIFS(Tablica_rezultata_razrednih_odjeljenja[Rezultat],Tablica_rezultata_razrednih_odjeljenja[Predmet],Izračuni!$C8,Tablica_rezultata_razrednih_odjeljenja[Vrsta],Izračuni!AI$5)*Postavke!K11,\"\")","v":""},0.08000000000000002,{"$f":"SUMIFS(Postavke!E11:K11,Izračuni!AC8:AI8,\">0\")","v":0.1},{"v":0.8000000000000002,"d":"80%"},2.67,"B-"]
[null,null,{"$f":"IF(Postavke!C12=\"\",\"\",Postavke!C12)","v":"Matematika 2"},{"v":0.85,"d":"85%"},{"v":0.95,"d":"95%"},"","","","","","","","","","","","","","","","","","","","","","","",{"$f":"IFERROR(AVERAGEIFS(Tablica_rezultata_razrednih_odjeljenja[Rezultat],Tablica_rezultata_razrednih_odjeljenja[Predmet],Izračuni!$C9,Tablica_rezultata_razrednih_odjeljenja[Vrsta],Izračuni!AC$5)*Postavke!E12,\"\")","v":0.1275},{"$f":"IFERROR(AVERAGEIFS(Tablica_rezultata_razrednih_odjeljenja[Rezultat],Tablica_rezultata_razrednih_odjeljenja[Predmet],Izračuni!$C9,Tablica_rezultata_razrednih_odjeljenja[Vrsta],Izračuni!AD$5)*Postavke!F12,\"\")","v":""},{"$f":"IFERROR(AVERAGEIFS(Tablica_rezultata_razrednih_odjeljenja[Rezultat],Tablica_rezultata_razrednih_odjeljenja[Predmet],Izračuni!$C9,Tablica_rezultata_razrednih_odjeljenja[Vrsta],Izračuni!AE$5)*Postavke!G12,\"\")","v":0.095},{"$f":"IFERROR(AVERAGEIFS(Tablica_rezultata_razrednih_odjeljenja[Rezultat],Tablica_rezultata_razrednih_odjeljenja[Predmet],Izračuni!$C9,Tablica_rezultata_razrednih_odjeljenja[Vrsta],Izračuni!AF$5)*Postavke!H12,\"\")","v":""},{"$f":"IFERROR(AVERAGEIFS(Tablica_rezultata_razrednih_odjeljenja[Rezultat],Tablica_rezultata_razrednih_odjeljenja[Predmet],Izračuni!$C9,Tablica_rezultata_razrednih_odjeljenja[Vrsta],Izračuni!AG$5)*Postavke!I12,\"\")","v":""},{"$f":"IFERROR(AVERAGEIFS(Tablica_rezultata_razrednih_odjeljenja[Rezultat],Tablica_rezultata_razrednih_odjeljenja[Predmet],Izračuni!$C9,Tablica_rezultata_razrednih_odjeljenja[Vrsta],Izračuni!AH$5)*Postavke!J12,\"\")","v":""},{"$f":"IFERROR(AVERAGEIFS(Tablica_rezultata_razrednih_odjeljenja[Rezultat],Tablica_rezultata_razrednih_odjeljenja[Predmet],Izračuni!$C9,Tablica_rezultata_razrednih_odjeljenja[Vrsta],Izračuni!AI$5)*Postavke!K12,\"\")","v":""},0.2225,{"$f":"SUMIFS(Postavke!E12:K12,Izračuni!AC9:AI9,\">0\")","v":0.25},{"v":0.89,"d":"89%"},3.33,"B+"]
[null,null,{"$f":"IF(Postavke!C13=\"\",\"\",Postavke!C13)","v":"Napredno programiranje u jeziku Java"},{"v":0.75,"d":"75%"},"","","","","","","","","","","","","","","","","","","","","","","","",{"$f":"IFERROR(AVERAGEIFS(Tablica_rezultata_razrednih_odjeljenja[Rezultat],Tablica_rezultata_razrednih_odjeljenja[Predmet],Izračuni!$C10,Tablica_rezultata_razrednih_odjeljenja[Vrsta],Izračuni!AC$5)*Postavke!E13,\"\")","v":""},{"$f":"IFERROR(AVERAGEIFS(Tablica_rezultata_razrednih_odjeljenja[Rezultat],Tablica_rezultata_razrednih_odjeljenja[Predmet],Izračuni!$C10,Tablica_rezultata_razrednih_odjeljenja[Vrsta],Izračuni!AD$5)*Postavke!F13,\"\")","v":""},{"$f":"IFERROR(AVERAGEIFS(Tablica_rezultata_razrednih_odjeljenja[Rezultat],Tablica_rezultata_razrednih_odjeljenja[Predmet],Izračuni!$C10,Tablica_rezultata_razrednih_odjeljenja[Vrsta],Izračuni!AE$5)*Postavke!G13,\"\")","v":""},{"$f":"IFERROR(AVERAGEIFS(Tablica_rezultata_razrednih_odjeljenja[Rezultat],Tablica_rezultata_razrednih_odjeljenja[Predmet],Izračuni!$C10,Tablica_rezultata_razrednih_odjeljenja[Vrsta],Izračuni!AF$5)*Postavke!H13,\"\")","v":""},{"$f":"IFERROR(AVERAGEIFS(Tablica_rezultata_razrednih_odjeljenja[Rezultat],Tablica_rezultata_razrednih_odjeljenja[Predmet],Izračuni!$C10,Tablica_rezultata_razrednih_odjeljenja[Vrsta],Izračuni!AG$5)*Postavke!I13,\"\")","v":0.15000000000000002},{"$f":"IFERROR(AVERAGEIFS(Tablica_rezultata_razrednih_odjeljenja[Rezultat],Tablica_rezultata_razrednih_odjeljenja[Predmet],Izračuni!$C10,Tablica_rezultata_razrednih_odjeljenja[Vrsta],Izračuni!AH$5)*Postavke!J13,\"\")","v":""},{"$f":"IFERROR(AVERAGEIFS(Tablica_rezultata_razrednih_odjeljenja[Rezultat],Tablica_rezultata_razrednih_odjeljenja[Predmet],Izračuni!$C10,Tablica_rezultata_razrednih_odjeljenja[Vrsta],Izračuni!AI$5)*Postavke!K13,\"\")","v":""},0.15000000000000002,{"$f":"SUMIFS(Postavke!E13:K13,Izračuni!AC10:AI10,\">0\")","v":0.2},{"v":0.7500000000000001,"d":"75%"},2,"C"]
[null,null,{"$f":"IF(Postavke!C14=\"\",\"\",Postavke!C14)","v":"Španjolski"},{"v":0.5,"d":"50%"},"","","","","","","","","","","","","","","","","","","","","","","","",{"$f":"IFERROR(AVERAGEIFS(Tablica_rezultata_razrednih_odjeljenja[Rezultat],Tablica_rezultata_razrednih_odjeljenja[Predmet],Izračuni!$C11,Tablica_rezultata_razrednih_odjeljenja[Vrsta],Izračuni!AC$5)*Postavke!E14,\"\")","v":0.05},{"$f":"IFERROR(AVERAGEIFS(Tablica_rezultata_razrednih_odjeljenja[Rezultat],Tablica_rezultata_razrednih_odjeljenja[Predmet],Izračuni!$C11,Tablica_rezultata_razrednih_odjeljenja[Vrsta],Izračuni!AD$5)*Postavke!F14,\"\")","v":""},{"$f":"IFERROR(AVERAGEIFS(Tablica_rezultata_razrednih_odjeljenja[Rezultat],Tablica_rezultata_razrednih_odjeljenja[Predmet],Izračuni!$C11,Tablica_rezultata_razrednih_odjeljenja[Vrsta],Izračuni!AE$5)*Postavke!G14,\"\")","v":""},{"$f":"IFERROR(AVERAGEIFS(Tablica_rezultata_razrednih_odjeljenja[Rezultat],Tablica_rezultata_razrednih_odjeljenja[Predmet],Izračuni!$C11,Tablica_rezultata_razrednih_odjeljenja[Vrsta],Izračuni!AF$5)*Postavke!H14,\"\")","v":""},{"$f":"IFERROR(AVERAGEIFS(Tablica_rezultata_razrednih_odjeljenja[Rezultat],Tablica_rezultata_razrednih_odjeljenja[Predmet],Izračuni!$C11,Tablica_rezultata_razrednih_odjeljenja[Vrsta],Izračuni!AG$5)*Postavke!I14,\"\")","v":""},{"$f":"IFERROR(AVERAGEIFS(Tablica_rezultata_razrednih_odjeljenja[Rezultat],Tablica_rezultata_razrednih_odjeljenja[Predmet],Izračuni!$C11,Tablica_rezultata_razrednih_odjeljenja[Vrsta],Izračuni!AH$5)*Postavke!J14,\"\")","v":""},{"$f":"IFERROR(AVERAGEIFS(Tablica_rezultata_razrednih_odjeljenja[Rezultat],Tablica_rezultata_razrednih_odjeljenja[Predmet],Izračuni!$C11,Tablica_rezultata_razrednih_odjeljenja[Vrsta],Izračuni!AI$5)*Postavke!K14,\"\")","v":""},0.05,{"$f":"SUMIFS(Postavke!E14:K14,Izračuni!AC11:AI11,\">0\")","v":0.1},{"v":0.5,"d":"50%"},0,"F"]
[null,null,{"$f":"IF(Postavke!C15=\"\",\"\",Postavke!C15)","v":"Sastavak"},{"v":0.95,"d":"95%"},"","","","","","","","","","","","","","","","","","","","","","","","",{"$f":"IFERROR(AVERAGEIFS(Tablica_rezultata_razrednih_odjeljenja[Rezultat],Tablica_rezultata_razrednih_odjeljenja[Predmet],Izračuni!$C12,Tablica_rezultata_razrednih_odjeljenja[Vrsta],Izračuni!AC$5)*Postavke!E15,\"\")","v":""},{"$f":"IFERROR(AVERAGEIFS(Tablica_rezultata_razrednih_odjeljenja[Rezultat],Tablica_rezultata_razrednih_odjeljenja[Predmet],Izračuni!$C12,Tablica_rezultata_razrednih_odjeljenja[Vrsta],Izračuni!AD$5)*Postavke!F15,\"\")","v":0.1425},{"$f":"IFERROR(AVERAGEIFS(Tablica_rezultata_razrednih_odjeljenja[Rezultat],Tablica_rezultata_razrednih_odjeljenja[Predmet],Izračuni!$C12,Tablica_rezultata_razrednih_odjeljenja[Vrsta],Izračuni!AE$5)*Postavke!G15,\"\")","v":""},{"$f":"IFERROR(AVERAGEIFS(Tablica_rezultata_razrednih_odjeljenja[Rezultat],Tablica_rezultata_razrednih_odjeljenja[Predmet],Izračuni!$C12,Tablica_rezultata_razrednih_odjeljenja[Vrsta],Izračuni!AF$5)*Postavke!H15,\"\")","v":""},{"$f":"IFERROR(AVERAGEIFS(Tablica_rezultata_razrednih_odjeljenja[Rezultat],Tablica_rezultata_razrednih_odjeljenja[Predmet],Izračuni!$C12,Tablica_rezultata_razrednih_odjeljenja[Vrsta],Izračuni!AG$5)*Postavke!I15,\"\")","v":""},{"$f":"IFERROR(AVERAGEIFS(Tablica_rezultata_razrednih_odjeljenja[Rezultat],Tablica_rezultata_razrednih_odjeljenja[Predmet],Izračuni!$C12,Tablica_rezultata_razrednih_odjeljenja[Vrsta],Izračuni!AH$5)*Postavke!J15,\"\")","v":""},{"$f":"IFERROR(AVERAGEIFS(Tablica_rezultata_razrednih_odjeljenja[Rezultat],Tablica_rezultata_razrednih_odjeljenja[Predmet],Izračuni!$C12,Tablica_rezultata_razrednih_odjeljenja[Vrsta],Izračuni!AI$5)*Postavke!K15,\"\")","v":""},0.1425,{"$f":"SUMIFS(Postavke!E15:K15,Izračuni!AC12:AI12,\">0\")","v":0.15},{"v":0.95,"d":"95%"},4,"A"]
[null,null,{"$f":"IF(Postavke!C16=\"\",\"\",Postavke!C16)","v":""},"","","","","","","","","","","","","","","","","","","","","","","","","",{"$f":"IFERROR(AVERAGEIFS(Tablica_rezultata_razrednih_odjeljenja[Rezultat],Tablica_rezultata_razrednih_odjeljenja[Predmet],Izračuni!$C13,Tablica_rezultata_razrednih_odjeljenja[Vrsta],Izračuni!AC$5)*Postavke!E16,\"\")","v":""},{"$f":"IFERROR(AVERAGEIFS(Tablica_rezultata_razrednih_odjeljenja[Rezultat],Tablica_rezultata_razrednih_odjeljenja[Predmet],Izračuni!$C13,Tablica_rezultata_razrednih_odjeljenja[Vrsta],Izračuni!AD$5)*Postavke!F16,\"\")","v":""},{"$f":"IFERROR(AVERAGEIFS(Tablica_rezultata_razrednih_odjeljenja[Rezultat],Tablica_rezultata_razrednih_odjeljenja[Predmet],Izračuni!$C13,Tablica_rezultata_razrednih_odjeljenja[Vrsta],Izračuni!AE$5)*Postavke!G16,\"\")","v":""},{"$f":"IFERROR(AVERAGEIFS(Tablica_rezultata_razrednih_odjeljenja[Rezultat],Tablica_rezultata_razrednih_odjeljenja[Predmet],Izračuni!$C13,Tablica_rezultata_razrednih_odjeljenja[Vrsta],Izračuni!AF$5)*Postavke!H16,\"\")","v":""},{"$f":"IFERROR(AVERAGEIFS(Tablica_rezultata_razrednih_odjeljenja[Rezultat],Tablica_rezultata_razrednih_odjeljenja[Predmet],Izračuni!$C13,Tablica_rezultata_razrednih_odjeljenja[Vrsta],Izračuni!AG$5)*Postavke!I16,\"\")","v":""},{"$f":"IFERROR(AVERAGEIFS(Tablica_rezultata_razrednih_odjeljenja[Rezultat],Tablica_rezultata_razrednih_odjeljenja[Predmet],Izračuni!$C13,Tablica_rezultata_razrednih_odjeljenja[Vrsta],Izračuni!AH$5)*Postavke!J16,\"\")","v":""},{"$f":"IFERROR(AVERAGEIFS(Tablica_rezultata_razrednih_odjeljenja[Rezultat],Tablica_rezultata_razrednih_odjeljenja[Predmet],Izračuni!$C13,Tablica_rezultata_razrednih_odjeljenja[Vrsta],Izračuni!AI$5)*Postavke!K16,\"\")","v":""},{"$f":"SUM(AC13:AI13)","v":0},{"$f":"SUMIFS(Postavke!E16:K16,Izračuni!AC13:AI13,\">0\")","v":0},{"$f":"IFERROR(AJ13/AK13,\"\")","v":""},"",""]
[null,null,{"$f":"IF(Postavke!C17=\"\",\"\",Postavke!C17)","v":""},"","","","","","","","","","","","","","","","","","","","","","","","","",{"$f":"IFERROR(AVERAGEIFS(Tablica_rezultata_razrednih_odjeljenja[Rezultat],Tablica_rezultata_razrednih_odjeljenja[Predmet],Izračuni!$C14,Tablica_rezultata_razrednih_odjeljenja[Vrsta],Izračuni!AC$5)*Postavke!E17,\"\")","v":""},{"$f":"IFERROR(AVERAGEIFS(Tablica_rezultata_razrednih_odjeljenja[Rezultat],Tablica_rezultata_razrednih_odjeljenja[Predmet],Izračuni!$C14,Tablica_rezultata_razrednih_odjeljenja[Vrsta],Izračuni!AD$5)*Postavke!F17,\"\")","v":""},{"$f":"IFERROR(AVERAGEIFS(Tablica_rezultata_razrednih_odjeljenja[Rezultat],Tablica_rezultata_razrednih_odjeljenja[Predmet],Izračuni!$C14,Tablica_rezultata_razrednih_odjeljenja[Vrsta],Izračuni!AE$5)*Postavke!G17,\"\")","v":""},{"$f":"IFERROR(AVERAGEIFS(Tablica_rezultata_razrednih_odjeljenja[Rezultat],Tablica_rezultata_razrednih_odjeljenja[Predmet],Izračuni!$C14,Tablica_rezultata_razrednih_odjeljenja[Vrsta],Izračuni!AF$5)*Postavke!H17,\"\")","v":""},{"$f":"IFERROR(AVERAGEIFS(Tablica_rezultata_razrednih_odjeljenja[Rezultat],Tablica_rezultata_razrednih_odjeljenja[Predmet],Izračuni!$C14,Tablica_rezultata_razrednih_odjeljenja[Vrsta],Izračuni!AG$5)*Postavke!I17,\"\")","v":""},{"$f":"IFERROR(AVERAGEIFS(Tablica_rezultata_razrednih_odjeljenja[Rezultat],Tablica_rezultata_razrednih_odjeljenja[Predmet],Izračuni!$C14,Tablica_rezultata_razrednih_odjeljenja[Vrsta],Izračuni!AH$5)*Postavke!J17,\"\")","v":""},{"$f":"IFERROR(AVERAGEIFS(Tablica_rezultata_razrednih_odjeljenja[Rezultat],Tablica_rezultata_razrednih_odjeljenja[Predmet],Izračuni!$C14,Tablica_rezultata_razrednih_odjeljenja[Vrsta],Izračuni!AI$5)*Postavke!K17,\"\")","v":""},0,{"$f":"SUMIFS(Postavke!E17:K17,Izračuni!AC14:AI14,\">0\")","v":0},"","",""]
[null,null,{"$f":"IF(Postavke!C18=\"\",\"\",Postavke!C18)","v":""},"","","","","","","","","","","","","","","","","","","","","","","","","",{"$f":"IFERROR(AVERAGEIFS(Tablica_rezultata_razrednih_odjeljenja[Rezultat],Tablica_rezultata_razrednih_odjeljenja[Predmet],Izračuni!$C15,Tablica_rezultata_razrednih_odjeljenja[Vrsta],Izračuni!AC$5)*Postavke!E18,\"\")","v":""},{"$f":"IFERROR(AVERAGEIFS(Tablica_rezultata_razrednih_odjeljenja[Rezultat],Tablica_rezultata_razrednih_odjeljenja[Predmet],Izračuni!$C15,Tablica_rezultata_razrednih_odjeljenja[Vrsta],Izračuni!AD$5)*Postavke!F18,\"\")","v":""},{"$f":"IFERROR(AVERAGEIFS(Tablica_rezultata_razrednih_odjeljenja[Rezultat],Tablica_rezultata_razrednih_odjeljenja[Predmet],Izračuni!$C15,Tablica_rezultata_razrednih_odjeljenja[Vrsta],Izračuni!AE$5)*Postavke!G18,\"\")","v":""},{"$f":"IFERROR(AVERAGEIFS(Tablica_rezultata_razrednih_odjeljenja[Rezultat],Tablica_rezultata_razrednih_odjeljenja[Predmet],Izračuni!$C15,Tablica_rezultata_razrednih_odjeljenja[Vrsta],Izračuni!AF$5)*Postavke!H18,\"\")","v":""},{"$f":"IFERROR(AVERAGEIFS(Tablica_rezultata_razrednih_odjeljenja[Rezultat],Tablica_rezultata_razrednih_odjeljenja[Predmet],Izračuni!$C15,Tablica_rezultata_razrednih_odjeljenja[Vrsta],Izračuni!AG$5)*Postavke!I18,\"\")","v":""},{"$f":"IFERROR(AVERAGEIFS(Tablica_rezultata_razrednih_odjeljenja[Rezultat],Tablica_rezultata_razrednih_odjeljenja[Predmet],Izračuni!$C15,Tablica_rezultata_razrednih_odjeljenja[Vrsta],Izračuni!AH$5)*Postavke!J18,\"\")","v":""},{"$f":"IFERROR(AVERAGEIFS(Tablica_rezultata_razrednih_odjeljenja[Rezultat],Tablica_rezultata_razrednih_odjeljenja[Predmet],Izračuni!$C15,Tablica_rezultata_razrednih_odjeljenja[Vrsta],Izračuni!AI$5)*Postavke!K18,\"\")","v":""},0,{"$f":"SUMIFS(Postavke!E18:K18,Izračuni!AC15:AI15,\">0\")","v":0},"","",""]
[null,null,{"$f":"IF(Postavke!C19=\"\",\"\",Postavke!C19)","v":""},"","","","","","","","","","","","","","","","","","","","","","","","","",{"$f":"IFERROR(AVERAGEIFS(Tablica_rezultata_razrednih_odjeljenja[Rezultat],Tablica_rezultata_razrednih_odjeljenja[Predmet],Izračuni!$C16,Tablica_rezultata_razrednih_odjeljenja[Vrsta],Izračuni!AC$5)*Postavke!E19,\"\")","v":""},{"$f":"IFERROR(AVERAGEIFS(Tablica_rezultata_razrednih_odjeljenja[Rezultat],Tablica_rezultata_razrednih_odjeljenja[Predmet],Izračuni!$C16,Tablica_rezultata_razrednih_odjeljenja[Vrsta],Izračuni!AD$5)*Postavke!F19,\"\")","v":""},{"$f":"IFERROR(AVERAGEIFS(Tablica_rezultata_razrednih_odjeljenja[Rezultat],Tablica_rezultata_razrednih_odjeljenja[Predmet],Izračuni!$C16,Tablica_rezultata_razrednih_odjeljenja[Vrsta],Izračuni!AE$5)*Postavke!G19,\"\")","v":""},{"$f":"IFERROR(AVERAGEIFS(Tablica_rezultata_razrednih_odjeljenja[Rezultat],Tablica_rezultata_razrednih_odjeljenja[Predmet],Izračuni!$C16,Tablica_rezultata_razrednih_odjeljenja[Vrsta],Izračuni!AF$5)*Postavke!H19,\"\")","v":""},{"$f":"IFERROR(AVERAGEIFS(Tablica_rezultata_razrednih_odjeljenja[Rezultat],Tablica_rezultata_razrednih_odjeljenja[Predmet],Izračuni!$C16,Tablica_rezultata_razrednih_odjeljenja[Vrsta],Izračuni!AG$5)*Postavke!I19,\"\")","v":""},{"$f":"IFERROR(AVERAGEIFS(Tablica_rezultata_razrednih_odjeljenja[Rezultat],Tablica_rezultata_razrednih_odjeljenja[Predmet],Izračuni!$C16,Tablica_rezultata_razrednih_odjeljenja[Vrsta],Izračuni!AH$5)*Postavke!J19,\"\")","v":""},{"$f":"IFERROR(AVERAGEIFS(Tablica_rezultata_razrednih_odjeljenja[Rezultat],Tablica_rezultata_razrednih_odjeljenja[Predmet],Izračuni!$C16,Tablica_rezultata_razrednih_odjeljenja[Vrsta],Izračuni!AI$5)*Postavke!K19,\"\")","v":""},0,{"$f":"SUMIFS(Postavke!E19:K19,Izračuni!AC16:AI16,\">0\")","v":0},"","",""]
[null,null,{"$f":"IF(Postavke!C20=\"\",\"\",Postavke!C20)","v":""},"","","","","","","","","","","","","","","","","","","","","","","","","",{"$f":"IFERROR(AVERAGEIFS(Tablica_rezultata_razrednih_odjeljenja[Rezultat],Tablica_rezultata_razrednih_odjeljenja[Predmet],Izračuni!$C17,Tablica_rezultata_razrednih_odjeljenja[Vrsta],Izračuni!AC$5)*Postavke!E20,\"\")","v":""},{"$f":"IFERROR(AVERAGEIFS(Tablica_rezultata_razrednih_odjeljenja[Rezultat],Tablica_rezultata_razrednih_odjeljenja[Predmet],Izračuni!$C17,Tablica_rezultata_razrednih_odjeljenja[Vrsta],Izračuni!AD$5)*Postavke!F20,\"\")","v":""},{"$f":"IFERROR(AVERAGEIFS(Tablica_rezultata_razrednih_odjeljenja[Rezultat],Tablica_rezultata_razrednih_odjeljenja[Predmet],Izračuni!$C17,Tablica_rezultata_razrednih_odjeljenja[Vrsta],Izračuni!AE$5)*Postavke!G20,\"\")","v":""},{"$f":"IFERROR(AVERAGEIFS(Tablica_rezultata_razrednih_odjeljenja[Rezultat],Tablica_rezultata_razrednih_odjeljenja[Predmet],Izračuni!$C17,Tablica_rezultata_razrednih_odjeljenja[Vrsta],Izračuni!AF$5)*Postavke!H20,\"\")","v":""},{"$f":"IFERROR(AVERAGEIFS(Tablica_rezultata_razrednih_odjeljenja[Rezultat],Tablica_rezultata_razrednih_odjeljenja[Predmet],Izračuni!$C17,Tablica_rezultata_razrednih_odjeljenja[Vrsta],Izračuni!AG$5)*Postavke!I20,\"\")","v":""},{"$f":"IFERROR(AVERAGEIFS(Tablica_rezultata_razrednih_odjeljenja[Rezultat],Tablica_rezultata_razrednih_odjeljenja[Predmet],Izračuni!$C17,Tablica_rezultata_razrednih_odjeljenja[Vrsta],Izračuni!AH$5)*Postavke!J20,\"\")","v":""},{"$f":"IFERROR(AVERAGEIFS(Tablica_rezultata_razrednih_odjeljenja[Rezultat],Tablica_rezultata_razrednih_odjeljenja[Predmet],Izračuni!$C17,Tablica_rezultata_razrednih_odjeljenja[Vrsta],Izračuni!AI$5)*Postavke!K20,\"\")","v":""},0,{"$f":"SUMIFS(Postavke!E20:K20,Izračuni!AC17:AI17,\">0\")","v":0},"","",""]
[null,null,{"$f":"IF(Postavke!C21=\"\",\"\",Postavke!C21)","v":""},"","","","","","","","","","","","","","","","","","","","","","","","","",{"$f":"IFERROR(AVERAGEIFS(Tablica_rezultata_razrednih_odjeljenja[Rezultat],Tablica_rezultata_razrednih_odjeljenja[Predmet],Izračuni!$C18,Tablica_rezultata_razrednih_odjeljenja[Vrsta],Izračuni!AC$5)*Postavke!E21,\"\")","v":""},{"$f":"IFERROR(AVERAGEIFS(Tablica_rezultata_razrednih_odjeljenja[Rezultat],Tablica_rezultata_razrednih_odjeljenja[Predmet],Izračuni!$C18,Tablica_rezultata_razrednih_odjeljenja[Vrsta],Izračuni!AD$5)*Postavke!F21,\"\")","v":""},{"$f":"IFERROR(AVERAGEIFS(Tablica_rezultata_razrednih_odjeljenja[Rezultat],Tablica_rezultata_razrednih_odjeljenja[Predmet],Izračuni!$C18,Tablica_rezultata_razrednih_odjeljenja[Vrsta],Izračuni!AE$5)*Postavke!G21,\"\")","v":""},{"$f":"IFERROR(AVERAGEIFS(Tablica_rezultata_razrednih_odjeljenja[Rezultat],Tablica_rezultata_razrednih_odjeljenja[Predmet],Izračuni!$C18,Tablica_rezultata_razrednih_odjeljenja[Vrsta],Izračuni!AF$5)*Postavke!H21,\"\")","v":""},{"$f":"IFERROR(AVERAGEIFS(Tablica_rezultata_razrednih_odjeljenja[Rezultat],Tablica_rezultata_razrednih_odjeljenja[Predmet],Izračuni!$C18,Tablica_rezultata_razrednih_odjeljenja[Vrsta],Izračuni!AG$5)*Postavke!I21,\"\")","v":""},{"$f":"IFERROR(AVERAGEIFS(Tablica_rezultata_razrednih_odjeljenja[Rezultat],Tablica_rezultata_razrednih_odjeljenja[Predmet],Izračuni!$C18,Tablica_rezultata_razrednih_odjeljenja[Vrsta],Izračuni!AH$5)*Postavke!J21,\"\")","v":""},{"$f":"IFERROR(AVERAGEIFS(Tablica_rezultata_razrednih_odjeljenja[Rezultat],Tablica_rezultata_razrednih_odjeljenja[Predmet],Izračuni!$C18,Tablica_rezultata_razrednih_odjeljenja[Vrsta],Izračuni!AI$5)*Postavke!K21,\"\")","v":""},0,{"$f":"SUMIFS(Postavke!E21:K21,Izračuni!AC18:AI18,\">0\")","v":0},"","",""]
[null,null,{"$f":"IF(Postavke!C22=\"\",\"\",Postavke!C22)","v":""},"","","","","","","","","","","","","","","","","","","","","","","","","",{"$f":"IFERROR(AVERAGEIFS(Tablica_rezultata_razrednih_odjeljenja[Rezultat],Tablica_rezultata_razrednih_odjeljenja[Predmet],Izračuni!$C19,Tablica_rezultata_razrednih_odjeljenja[Vrsta],Izračuni!AC$5)*Postavke!E22,\"\")","v":""},{"$f":"IFERROR(AVERAGEIFS(Tablica_rezultata_razrednih_odjeljenja[Rezultat],Tablica_rezultata_razrednih_odjeljenja[Predmet],Izračuni!$C19,Tablica_rezultata_razrednih_odjeljenja[Vrsta],Izračuni!AD$5)*Postavke!F22,\"\")","v":""},{"$f":"IFERROR(AVERAGEIFS(Tablica_rezultata_razrednih_odjeljenja[Rezultat],Tablica_rezultata_razrednih_odjeljenja[Predmet],Izračuni!$C19,Tablica_rezultata_razrednih_odjeljenja[Vrsta],Izračuni!AE$5)*Postavke!G22,\"\")","v":""},{"$f":"IFERROR(AVERAGEIFS(Tablica_rezultata_razrednih_odjeljenja[Rezultat],Tablica_rezultata_razrednih_odjeljenja[Predmet],Izračuni!$C19,Tablica_rezultata_razrednih_odjeljenja[Vrsta],Izračuni!AF$5)*Postavke!H22,\"\")","v":""},{"$f":"IFERROR(AVERAGEIFS(Tablica_rezultata_razrednih_odjeljenja[Rezultat],Tablica_rezultata_razrednih_odjeljenja[Predmet],Izračuni!$C19,Tablica_rezultata_razrednih_odjeljenja[Vrsta],Izračuni!AG$5)*Postavke!I22,\"\")","v":""},{"$f":"IFERROR(AVERAGEIFS(Tablica_rezultata_razrednih_odjeljenja[Rezultat],Tablica_rezultata_razrednih_odjeljenja[Predmet],Izračuni!$C19,Tablica_rezultata_razrednih_odjeljenja[Vrsta],Izračuni!AH$5)*Postavke!J22,\"\")","v":""},{"$f":"IFERROR(AVERAGEIFS(Tablica_rezultata_razrednih_odjeljenja[Rezultat],Tablica_rezultata_razrednih_odjeljenja[Predmet],Izračuni!$C19,Tablica_rezultata_razrednih_odjeljenja[Vrsta],Izračuni!AI$5)*Postavke!K22,\"\")","v":""},0,{"$f":"SUMIFS(Postavke!E22:K22,Izračuni!AC19:AI19,\">0\")","v":0},"","",""]
[null,null,{"$f":"IF(Postavke!C23=\"\",\"\",Postavke!C23)","v":""},"","","","","","","","","","","","","","","","","","","","","","","","","",{"$f":"IFERROR(AVERAGEIFS(Tablica_rezultata_razrednih_odjeljenja[Rezultat],Tablica_rezultata_razrednih_odjeljenja[Predmet],Izračuni!$C20,Tablica_rezultata_razrednih_odjeljenja[Vrsta],Izračuni!AC$5)*Postavke!E23,\"\")","v":""},{"$f":"IFERROR(AVERAGEIFS(Tablica_rezultata_razrednih_odjeljenja[Rezultat],Tablica_rezultata_razrednih_odjeljenja[Predmet],Izračuni!$C20,Tablica_rezultata_razrednih_odjeljenja[Vrsta],Izračuni!AD$5)*Postavke!F23,\"\")","v":""},{"$f":"IFERROR(AVERAGEIFS(Tablica_rezultata_razrednih_odjeljenja[Rezultat],Tablica_rezultata_razrednih_odjeljenja[Predmet],Izračuni!$C20,Tablica_rezultata_razrednih_odjeljenja[Vrsta],Izračuni!AE$5)*Postavke!G23,\"\")","v":""},{"$f":"IFERROR(AVERAGEIFS(Tablica_rezultata_razrednih_odjeljenja[Rezultat],Tablica_rezultata_razrednih_odjeljenja[Predmet],Izračuni!$C20,Tablica_rezultata_razrednih_odjeljenja[Vrsta],Izračuni!AF$5)*Postavke!H23,\"\")","v":""},{"$f":"IFERROR(AVERAGEIFS(Tablica_rezultata_razrednih_odjeljenja[Rezultat],Tablica_rezultata_razrednih_odjeljenja[Predmet],Izračuni!$C20,Tablica_rezultata_razrednih_odjeljenja[Vrsta],Izračuni!AG$5)*Postavke!I23,\"\")","v":""},{"$f":"IFERROR(AVERAGEIFS(Tablica_rezultata_razrednih_odjeljenja[Rezultat],Tablica_rezultata_razrednih_odjeljenja[Predmet],Izračuni!$C20,Tablica_rezultata_razrednih_odjeljenja[Vrsta],Izračuni!AH$5)*Postavke!J23,\"\")","v":""},{"$f":"IFERROR(AVERAGEIFS(Tablica_rezultata_razrednih_odjeljenja[Rezultat],Tablica_rezultata_razrednih_odjeljenja[Predmet],Izračuni!$C20,Tablica_rezultata_razrednih_odjeljenja[Vrsta],Izračuni!AI$5)*Postavke!K23,\"\")","v":""},0,{"$f":"SUMIFS(Postavke!E23:K23,Izračuni!AC20:AI20,\">0\")","v":0},"","",""]
[null,null,{"$f":"IF(Postavke!C24=\"\",\"\",Postavke!C24)","v":""},"","","","","","","","","","","","","","","","","","","","","","","","","",{"$f":"IFERROR(AVERAGEIFS(Tablica_rezultata_razrednih_odjeljenja[Rezultat],Tablica_rezultata_razrednih_odjeljenja[Predmet],Izračuni!$C21,Tablica_rezultata_razrednih_odjeljenja[Vrsta],Izračuni!AC$5)*Postavke!E24,\"\")","v":""},{"$f":"IFERROR(AVERAGEIFS(Tablica_rezultata_razrednih_odjeljenja[Rezultat],Tablica_rezultata_razrednih_odjeljenja[Predmet],Izračuni!$C21,Tablica_rezultata_razrednih_odjeljenja[Vrsta],Izračuni!AD$5)*Postavke!F24,\"\")","v":""},{"$f":"IFERROR(AVERAGEIFS(Tablica_rezultata_razrednih_odjeljenja[Rezultat],Tablica_rezultata_razrednih_odjeljenja[Predmet],Izračuni!$C21,Tablica_rezultata_razrednih_odjeljenja[Vrsta],Izračuni!AE$5)*Postavke!G24,\"\")","v":""},{"$f":"IFERROR(AVERAGEIFS(Tablica_rezultata_razrednih_odjeljenja[Rezultat],Tablica_rezultata_razrednih_odjeljenja[Predmet],Izračuni!$C21,Tablica_rezultata_razrednih_odjeljenja[Vrsta],Izračuni!AF$5)*Postavke!H24,\"\")","v":""},{"$f":"IFERROR(AVERAGEIFS(Tablica_rezultata_razrednih_odjeljenja[Rezultat],Tablica_rezultata_razrednih_odjeljenja[Predmet],Izračuni!$C21,Tablica_rezultata_razrednih_odjeljenja[Vrsta],Izračuni!AG$5)*Postavke!I24,\"\")","v":""},{"$f":"IFERROR(AVERAGEIFS(Tablica_rezultata_razrednih_odjeljenja[Rezultat],Tablica_rezultata_razrednih_odjeljenja[Predmet],Izračuni!$C21,Tablica_rezultata_razrednih_odjeljenja[Vrsta],Izračuni!AH$5)*Postavke!J24,\"\")","v":""},{"$f":"IFERROR(AVERAGEIFS(Tablica_rezultata_razrednih_odjeljenja[Rezultat],Tablica_rezultata_razrednih_odjeljenja[Predmet],Izračuni!$C21,Tablica_rezultata_razrednih_odjeljenja[Vrsta],Izračuni!AI$5)*Postavke!K24,\"\")","v":""},0,{"$f":"SUMIFS(Postavke!E24:K24,Izračuni!AC21:AI21,\">0\")","v":0},"","",""]
[null,null,{"$f":"IF(Postavke!C25=\"\",\"\",Postavke!C25)","v":""},"","","","","","","","","","","","","","","","","","","","","","","","","",{"$f":"IFERROR(AVERAGEIFS(Tablica_rezultata_razrednih_odjeljenja[Rezultat],Tablica_rezultata_razrednih_odjeljenja[Predmet],Izračuni!$C22,Tablica_rezultata_razrednih_odjeljenja[Vrsta],Izračuni!AC$5)*Postavke!E25,\"\")","v":""},{"$f":"IFERROR(AVERAGEIFS(Tablica_rezultata_razrednih_odjeljenja[Rezultat],Tablica_rezultata_razrednih_odjeljenja[Predmet],Izračuni!$C22,Tablica_rezultata_razrednih_odjeljenja[Vrsta],Izračuni!AD$5)*Postavke!F25,\"\")","v":""},{"$f":"IFERROR(AVERAGEIFS(Tablica_rezultata_razrednih_odjeljenja[Rezultat],Tablica_rezultata_razrednih_odjeljenja[Predmet],Izračuni!$C22,Tablica_rezultata_razrednih_odjeljenja[Vrsta],Izračuni!AE$5)*Postavke!G25,\"\")","v":""},{"$f":"IFERROR(AVERAGEIFS(Tablica_rezultata_razrednih_odjeljenja[Rezultat],Tablica_rezultata_razrednih_odjeljenja[Predmet],Izračuni!$C22,Tablica_rezultata_razrednih_odjeljenja[Vrsta],Izračuni!AF$5)*Postavke!H25,\"\")","v":""},{"$f":"IFERROR(AVERAGEIFS(Tablica_rezultata_razrednih_odjeljenja[Rezultat],Tablica_rezultata_razrednih_odjeljenja[Predmet],Izračuni!$C22,Tablica_rezultata_razrednih_odjeljenja[Vrsta],Izračuni!AG$5)*Postavke!I25,\"\")","v":""},{"$f":"IFERROR(AVERAGEIFS(Tablica_rezultata_razrednih_odjeljenja[Rezultat],Tablica_rezultata_razrednih_odjeljenja[Predmet],Izračuni!$C22,Tablica_rezultata_razrednih_odjeljenja[Vrsta],Izračuni!AH$5)*Postavke!J25,\"\")","v":""},{"$f":"IFERROR(AVERAGEIFS(Tablica_rezultata_razrednih_odjeljenja[Rezultat],Tablica_rezultata_razrednih_odjeljenja[Predmet],Izračuni!$C22,Tablica_rezultata_razrednih_odjeljenja[Vrsta],Izračuni!AI$5)*Postavke!K25,\"\")","v":""},0,{"$f":"SUMIFS(Postavke!E25:K25,Izračuni!AC22:AI22,\">0\")","v":0},"","",""]
[null,null,{"$f":"IF(Postavke!C26=\"\",\"\",Postavke!C26)","v":""},"","","","","","","","","","","","","","","","","","","","","","","","","",{"$f":"IFERROR(AVERAGEIFS(Tablica_rezultata_razrednih_odjeljenja[Rezultat],Tablica_rezultata_razrednih_odjeljenja[Predmet],Izračuni!$C23,Tablica_rezultata_razrednih_odjeljenja[Vrsta],Izračuni!AC$5)*Postavke!E26,\"\")","v":""},{"$f":"IFERROR(AVERAGEIFS(Tablica_rezultata_razrednih_odjeljenja[Rezultat],Tablica_rezultata_razrednih_odjeljenja[Predmet],Izračuni!$C23,Tablica_rezultata_razrednih_odjeljenja[Vrsta],Izračuni!AD$5)*Postavke!F26,\"\")","v":""},{"$f":"IFERROR(AVERAGEIFS(Tablica_rezultata_razrednih_odjeljenja[Rezultat],Tablica_rezultata_razrednih_odjeljenja[Predmet],Izračuni!$C23,Tablica_rezultata_razrednih_odjeljenja[Vrsta],Izračuni!AE$5)*Postavke!G26,\"\")","v":""},{"$f":"IFERROR(AVERAGEIFS(Tablica_rezultata_razrednih_odjeljenja[Rezultat],Tablica_rezultata_razrednih_odjeljenja[Predmet],Izračuni!$C23,Tablica_rezultata_razrednih_odjeljenja[Vrsta],Izračuni!AF$5)*Postavke!H26,\"\")","v":""},{"$f":"IFERROR(AVERAGEIFS(Tablica_rezultata_razrednih_odjeljenja[Rezultat],Tablica_rezultata_razrednih_odjeljenja[Predmet],Izračuni!$C23,Tablica_rezultata_razrednih_odjeljenja[Vrsta],Izračuni!AG$5)*Postavke!I26,\"\")","v":""},{"$f":"IFERROR(AVERAGEIFS(Tablica_rezultata_razrednih_odjeljenja[Rezultat],Tablica_rezultata_razrednih_odjeljenja[Predmet],Izračuni!$C23,Tablica_rezultata_razrednih_odjeljenja[Vrsta],Izračuni!AH$5)*Postavke!J26,\"\")","v":""},{"$f":"IFERROR(AVERAGEIFS(Tablica_rezultata_razrednih_odjeljenja[Rezultat],Tablica_rezultata_razrednih_odjeljenja[Predmet],Izračuni!$C23,Tablica_rezultata_razrednih_odjeljenja[Vrsta],Izračuni!AI$5)*Postavke!K26,\"\")","v":""},0,{"$f":"SUMIFS(Postavke!E26:K26,Izračuni!AC23:AI23,\">0\")","v":0},"","",""]
[null,null,{"$f":"IF(Postavke!C27=\"\",\"\",Postavke!C27)","v":""},"","","","","","","","","","","","","","","","","","","","","","","","","",{"$f":"IFERROR(AVERAGEIFS(Tablica_rezultata_razrednih_odjeljenja[Rezultat],Tablica_rezultata_razrednih_odjeljenja[Predmet],Izračuni!$C24,Tablica_rezultata_razrednih_odjeljenja[Vrsta],Izračuni!AC$5)*Postavke!E27,\"\")","v":""},{"$f":"IFERROR(AVERAGEIFS(Tablica_rezultata_razrednih_odjeljenja[Rezultat],Tablica_rezultata_razrednih_odjeljenja[Predmet],Izračuni!$C24,Tablica_rezultata_razrednih_odjeljenja[Vrsta],Izračuni!AD$5)*Postavke!F27,\"\")","v":""},{"$f":"IFERROR(AVERAGEIFS(Tablica_rezultata_razrednih_odjeljenja[Rezultat],Tablica_rezultata_razrednih_odjeljenja[Predmet],Izračuni!$C24,Tablica_rezultata_razrednih_odjeljenja[Vrsta],Izračuni!AE$5)*Postavke!G27,\"\")","v":""},{"$f":"IFERROR(AVERAGEIFS(Tablica_rezultata_razrednih_odjeljenja[Rezultat],Tablica_rezultata_razrednih_odjeljenja[Predmet],Izračuni!$C24,Tablica_rezultata_razrednih_odjeljenja[Vrsta],Izračuni!AF$5)*Postavke!H27,\"\")","v":""},{"$f":"IFERROR(AVERAGEIFS(Tablica_rezultata_razrednih_odjeljenja[Rezultat],Tablica_rezultata_razrednih_odjeljenja[Predmet],Izračuni!$C24,Tablica_rezultata_razrednih_odjeljenja[Vrsta],Izračuni!AG$5)*Postavke!I27,\"\")","v":""},{"$f":"IFERROR(AVERAGEIFS(Tablica_rezultata_razrednih_odjeljenja[Rezultat],Tablica_rezultata_razrednih_odjeljenja[Predmet],Izračuni!$C24,Tablica_rezultata_razrednih_odjeljenja[Vrsta],Izračuni!AH$5)*Postavke!J27,\"\")","v":""},{"$f":"IFERROR(AVERAGEIFS(Tablica_rezultata_razrednih_odjeljenja[Rezultat],Tablica_rezultata_razrednih_odjeljenja[Predmet],Izračuni!$C24,Tablica_rezultata_razrednih_odjeljenja[Vrsta],Izračuni!AI$5)*Postavke!K27,\"\")","v":""},0,{"$f":"SUMIFS(Postavke!E27:K27,Izračuni!AC24:AI24,\">0\")","v":0},"","",""]
[null,null,{"$f":"IF(Postavke!C28=\"\",\"\",Postavke!C28)","v":""},"","","","","","","","","","","","","","","","","","","","","","","","","",{"$f":"IFERROR(AVERAGEIFS(Tablica_rezultata_razrednih_odjeljenja[Rezultat],Tablica_rezultata_razrednih_odjeljenja[Predmet],Izračuni!$C25,Tablica_rezultata_razrednih_odjeljenja[Vrsta],Izračuni!AC$5)*Postavke!E28,\"\")","v":""},{"$f":"IFERROR(AVERAGEIFS(Tablica_rezultata_razrednih_odjeljenja[Rezultat],Tablica_rezultata_razrednih_odjeljenja[Predmet],Izračuni!$C25,Tablica_rezultata_razrednih_odjeljenja[Vrsta],Izračuni!AD$5)*Postavke!F28,\"\")","v":""},{"$f":"IFERROR(AVERAGEIFS(Tablica_rezultata_razrednih_odjeljenja[Rezultat],Tablica_rezultata_razrednih_odjeljenja[Predmet],Izračuni!$C25,Tablica_rezultata_razrednih_odjeljenja[Vrsta],Izračuni!AE$5)*Postavke!G28,\"\")","v":""},{"$f":"IFERROR(AVERAGEIFS(Tablica_rezultata_razrednih_odjeljenja[Rezultat],Tablica_rezultata_razrednih_odjeljenja[Predmet],Izračuni!$C25,Tablica_rezultata_razrednih_odjeljenja[Vrsta],Izračuni!AF$5)*Postavke!H28,\"\")","v":""},{"$f":"IFERROR(AVERAGEIFS(Tablica_rezultata_razrednih_odjeljenja[Rezultat],Tablica_rezultata_razrednih_odjeljenja[Predmet],Izračuni!$C25,Tablica_rezultata_razrednih_odjeljenja[Vrsta],Izračuni!AG$5)*Postavke!I28,\"\")","v":""},{"$f":"IFERROR(AVERAGEIFS(Tablica_rezultata_razrednih_odjeljenja[Rezultat],Tablica_rezultata_razrednih_odjeljenja[Predmet],Izračuni!$C25,Tablica_rezultata_razrednih_odjeljenja[Vrsta],Izračuni!AH$5)*Postavke!J28,\"\")","v":""},{"$f":"IFERROR(AVERAGEIFS(Tablica_rezultata_razrednih_odjeljenja[Rezultat],Tablica_rezultata_razrednih_odjeljenja[Predmet],Izračuni!$C25,Tablica_rezultata_razrednih_odjeljenja[Vrsta],Izračuni!AI$5)*Postavke!K28,\"\")","v":""},0,{"$f":"SUMIFS(Postavke!E28:K28,Izračuni!AC25:AI25,\">0\")","v":0},"","",""]
[null,null,{"$f":"IF(Postavke!C29=\"\",\"\",Postavke!C29)","v":""},"","","","","","","","","","","","","","","","","","","","","","","","","",{"$f":"IFERROR(AVERAGEIFS(Tablica_rezultata_razrednih_odjeljenja[Rezultat],Tablica_rezultata_razrednih_odjeljenja[Predmet],Izračuni!$C26,Tablica_rezultata_razrednih_odjeljenja[Vrsta],Izračuni!AC$5)*Postavke!E29,\"\")","v":""},{"$f":"IFERROR(AVERAGEIFS(Tablica_rezultata_razrednih_odjeljenja[Rezultat],Tablica_rezultata_razrednih_odjeljenja[Predmet],Izračuni!$C26,Tablica_rezultata_razrednih_odjeljenja[Vrsta],Izračuni!AD$5)*Postavke!F29,\"\")","v":""},{"$f":"IFERROR(AVERAGEIFS(Tablica_rezultata_razrednih_odjeljenja[Rezultat],Tablica_rezultata_razrednih_odjeljenja[Predmet],Izračuni!$C26,Tablica_rezultata_razrednih_odjeljenja[Vrsta],Izračuni!AE$5)*Postavke!G29,\"\")","v":""},{"$f":"IFERROR(AVERAGEIFS(Tablica_rezultata_razrednih_odjeljenja[Rezultat],Tablica_rezultata_razrednih_odjeljenja[Predmet],Izračuni!$C26,Tablica_rezultata_razrednih_odjeljenja[Vrsta],Izračuni!AF$5)*Postavke!H29,\"\")","v":""},{"$f":"IFERROR(AVERAGEIFS(Tablica_rezultata_razrednih_odjeljenja[Rezultat],Tablica_rezultata_razrednih_odjeljenja[Predmet],Izračuni!$C26,Tablica_rezultata_razrednih_odjeljenja[Vrsta],Izračuni!AG$5)*Postavke!I29,\"\")","v":""},{"$f":"IFERROR(AVERAGEIFS(Tablica_rezultata_razrednih_odjeljenja[Rezultat],Tablica_rezultata_razrednih_odjeljenja[Predmet],Izračuni!$C26,Tablica_rezultata_razrednih_odjeljenja[Vrsta],Izračuni!AH$5)*Postavke!J29,\"\")","v":""},{"$f":"IFERROR(AVERAGEIFS(Tablica_rezultata_razrednih_odjeljenja[Rezultat],Tablica_rezultata_razrednih_odjeljenja[Predmet],Izračuni!$C26,Tablica_rezultata_razrednih_odjeljenja[Vrsta],Izračuni!AI$5)*Postavke!K29,\"\")","v":""},0,{"$f":"SUMIFS(Postavke!E29:K29,Izračuni!AC26:AI26,\">0\")","v":0},"","",""]
[null,null,{"$f":"IF(Postavke!C30=\"\",\"\",Postavke!C30)","v":""},"","","","","","","","","","","","","","","","","","","","","","","","","",{"$f":"IFERROR(AVERAGEIFS(Tablica_rezultata_razrednih_odjeljenja[Rezultat],Tablica_rezultata_razrednih_odjeljenja[Predmet],Izračuni!$C27,Tablica_rezultata_razrednih_odjeljenja[Vrsta],Izračuni!AC$5)*Postavke!E30,\"\")","v":""},{"$f":"IFERROR(AVERAGEIFS(Tablica_rezultata_razrednih_odjeljenja[Rezultat],Tablica_rezultata_razrednih_odjeljenja[Predmet],Izračuni!$C27,Tablica_rezultata_razrednih_odjeljenja[Vrsta],Izračuni!AD$5)*Postavke!F30,\"\")","v":""},{"$f":"IFERROR(AVERAGEIFS(Tablica_rezultata_razrednih_odjeljenja[Rezultat],Tablica_rezultata_razrednih_odjeljenja[Predmet],Izračuni!$C27,Tablica_rezultata_razrednih_odjeljenja[Vrsta],Izračuni!AE$5)*Postavke!G30,\"\")","v":""},{"$f":"IFERROR(AVERAGEIFS(Tablica_rezultata_razrednih_odjeljenja[Rezultat],Tablica_rezultata_razrednih_odjeljenja[Predmet],Izračuni!$C27,Tablica_rezultata_razrednih_odjeljenja[Vrsta],Izračuni!AF$5)*Postavke!H30,\"\")","v":""},{"$f":"IFERROR(AVERAGEIFS(Tablica_rezultata_razrednih_odjeljenja[Rezultat],Tablica_rezultata_razrednih_odjeljenja[Predmet],Izračuni!$C27,Tablica_rezultata_razrednih_odjeljenja[Vrsta],Izračuni!AG$5)*Postavke!I30,\"\")","v":""},{"$f":"IFERROR(AVERAGEIFS(Tablica_rezultata_razrednih_odjeljenja[Rezultat],Tablica_rezultata_razrednih_odjeljenja[Predmet],Izračuni!$C27,Tablica_rezultata_razrednih_odjeljenja[Vrsta],Izračuni!AH$5)*Postavke!J30,\"\")","v":""},{"$f":"IFERROR(AVERAGEIFS(Tablica_rezultata_razrednih_odjeljenja[Rezultat],Tablica_rezultata_razrednih_odjeljenja[Predmet],Izračuni!$C27,Tablica_rezultata_razrednih_odjeljenja[Vrsta],Izračuni!AI$5)*Postavke!K30,\"\")","v":""},0,{"$f":"SUMIFS(Postavke!E30:K30,Izračuni!AC27:AI27,\">0\")","v":0},"","",""]
[null,null,{"$f":"IF(Postavke!C31=\"\",\"\",Postavke!C31)","v":""},"","","","","","","","","","","","","","","","","","","","","","","","","",{"$f":"IFERROR(AVERAGEIFS(Tablica_rezultata_razrednih_odjeljenja[Rezultat],Tablica_rezultata_razrednih_odjeljenja[Predmet],Izračuni!$C28,Tablica_rezultata_razrednih_odjeljenja[Vrsta],Izračuni!AC$5)*Postavke!E31,\"\")","v":""},{"$f":"IFERROR(AVERAGEIFS(Tablica_rezultata_razrednih_odjeljenja[Rezultat],Tablica_rezultata_razrednih_odjeljenja[Predmet],Izračuni!$C28,Tablica_rezultata_razrednih_odjeljenja[Vrsta],Izračuni!AD$5)*Postavke!F31,\"\")","v":""},{"$f":"IFERROR(AVERAGEIFS(Tablica_rezultata_razrednih_odjeljenja[Rezultat],Tablica_rezultata_razrednih_odjeljenja[Predmet],Izračuni!$C28,Tablica_rezultata_razrednih_odjeljenja[Vrsta],Izračuni!AE$5)*Postavke!G31,\"\")","v":""},{"$f":"IFERROR(AVERAGEIFS(Tablica_rezultata_razrednih_odjeljenja[Rezultat],Tablica_rezultata_razrednih_odjeljenja[Predmet],Izračuni!$C28,Tablica_rezultata_razrednih_odjeljenja[Vrsta],Izračuni!AF$5)*Postavke!H31,\"\")","v":""},{"$f":"IFERROR(AVERAGEIFS(Tablica_rezultata_razrednih_odjeljenja[Rezultat],Tablica_rezultata_razrednih_odjeljenja[Predmet],Izračuni!$C28,Tablica_rezultata_razrednih_odjeljenja[Vrsta],Izračuni!AG$5)*Postavke!I31,\"\")","v":""},{"$f":"IFERROR(AVERAGEIFS(Tablica_rezultata_razrednih_odjeljenja[Rezultat],Tablica_rezultata_razrednih_odjeljenja[Predmet],Izračuni!$C28,Tablica_rezultata_razrednih_odjeljenja[Vrsta],Izračuni!AH$5)*Postavke!J31,\"\")","v":""},{"$f":"IFERROR(AVERAGEIFS(Tablica_rezultata_razrednih_odjeljenja[Rezultat],Tablica_rezultata_razrednih_odjeljenja[Predmet],Izračuni!$C28,Tablica_rezultata_razrednih_odjeljenja[Vrsta],Izračuni!AI$5)*Postavke!K31,\"\")","v":""},0,{"$f":"SUMIFS(Postavke!E31:K31,Izračuni!AC28:AI28,\">0\")","v":0},"","",""]
[null,null,{"$f":"IF(Postavke!C32=\"\",\"\",Postavke!C32)","v":""},"","","","","","","","","","","","","","","","","","","","","","","","","",{"$f":"IFERROR(AVERAGEIFS(Tablica_rezultata_razrednih_odjeljenja[Rezultat],Tablica_rezultata_razrednih_odjeljenja[Predmet],Izračuni!$C29,Tablica_rezultata_razrednih_odjeljenja[Vrsta],Izračuni!AC$5)*Postavke!E32,\"\")","v":""},{"$f":"IFERROR(AVERAGEIFS(Tablica_rezultata_razrednih_odjeljenja[Rezultat],Tablica_rezultata_razrednih_odjeljenja[Predmet],Izračuni!$C29,Tablica_rezultata_razrednih_odjeljenja[Vrsta],Izračuni!AD$5)*Postavke!F32,\"\")","v":""},{"$f":"IFERROR(AVERAGEIFS(Tablica_rezultata_razrednih_odjeljenja[Rezultat],Tablica_rezultata_razrednih_odjeljenja[Predmet],Izračuni!$C29,Tablica_rezultata_razrednih_odjeljenja[Vrsta],Izračuni!AE$5)*Postavke!G32,\"\")","v":""},{"$f":"IFERROR(AVERAGEIFS(Tablica_rezultata_razrednih_odjeljenja[Rezultat],Tablica_rezultata_razrednih_odjeljenja[Predmet],Izračuni!$C29,Tablica_rezultata_razrednih_odjeljenja[Vrsta],Izračuni!AF$5)*Postavke!H32,\"\")","v":""},{"$f":"IFERROR(AVERAGEIFS(Tablica_rezultata_razrednih_odjeljenja[Rezultat],Tablica_rezultata_razrednih_odjeljenja[Predmet],Izračuni!$C29,Tablica_rezultata_razrednih_odjeljenja[Vrsta],Izračuni!AG$5)*Postavke!I32,\"\")","v":""},{"$f":"IFERROR(AVERAGEIFS(Tablica_rezultata_razrednih_odjeljenja[Rezultat],Tablica_rezultata_razrednih_odjeljenja[Predmet],Izračuni!$C29,Tablica_rezultata_razrednih_odjeljenja[Vrsta],Izračuni!AH$5)*Postavke!J32,\"\")","v":""},{"$f":"IFERROR(AVERAGEIFS(Tablica_rezultata_razrednih_odjeljenja[Rezultat],Tablica_rezultata_razrednih_odjeljenja[Predmet],Izračuni!$C29,Tablica_rezultata_razrednih_odjeljenja[Vrsta],Izračuni!AI$5)*Postavke!K32,\"\")","v":""},0,{"$f":"SUMIFS(Postavke!E32:K32,Izračuni!AC29:AI29,\">0\")","v":0},"","",""]
[null,null,{"$f":"IF(Postavke!C33=\"\",\"\",Postavke!C33)","v":""},"","","","","","","","","","","","","","","","","","","","","","","","","",{"$f":"IFERROR(AVERAGEIFS(Tablica_rezultata_razrednih_odjeljenja[Rezultat],Tablica_rezultata_razrednih_odjeljenja[Predmet],Izračuni!$C30,Tablica_rezultata_razrednih_odjeljenja[Vrsta],Izračuni!AC$5)*Postavke!E33,\"\")","v":""},{"$f":"IFERROR(AVERAGEIFS(Tablica_rezultata_razrednih_odjeljenja[Rezultat],Tablica_rezultata_razrednih_odjeljenja[Predmet],Izračuni!$C30,Tablica_rezultata_razrednih_odjeljenja[Vrsta],Izračuni!AD$5)*Postavke!F33,\"\")","v":""},{"$f":"IFERROR(AVERAGEIFS(Tablica_rezultata_razrednih_odjeljenja[Rezultat],Tablica_rezultata_razrednih_odjeljenja[Predmet],Izračuni!$C30,Tablica_rezultata_razrednih_odjeljenja[Vrsta],Izračuni!AE$5)*Postavke!G33,\"\")","v":""},{"$f":"IFERROR(AVERAGEIFS(Tablica_rezultata_razrednih_odjeljenja[Rezultat],Tablica_rezultata_razrednih_odjeljenja[Predmet],Izračuni!$C30,Tablica_rezultata_razrednih_odjeljenja[Vrsta],Izračuni!AF$5)*Postavke!H33,\"\")","v":""},{"$f":"IFERROR(AVERAGEIFS(Tablica_rezultata_razrednih_odjeljenja[Rezultat],Tablica_rezultata_razrednih_odjeljenja[Predmet],Izračuni!$C30,Tablica_rezultata_razrednih_odjeljenja[Vrsta],Izračuni!AG$5)*Postavke!I33,\"\")","v":""},{"$f":"IFERROR(AVERAGEIFS(Tablica_rezultata_razrednih_odjeljenja[Rezultat],Tablica_rezultata_razrednih_odjeljenja[Predmet],Izračuni!$C30,Tablica_rezultata_razrednih_odjeljenja[Vrsta],Izračuni!AH$5)*Postavke!J33,\"\")","v":""},{"$f":"IFERROR(AVERAGEIFS(Tablica_rezultata_razrednih_odjeljenja[Rezultat],Tablica_rezultata_razrednih_odjeljenja[Predmet],Izračuni!$C30,Tablica_rezultata_razrednih_odjeljenja[Vrsta],Izračuni!AI$5)*Postavke!K33,\"\")","v":""},0,{"$f":"SUMIFS(Postavke!E33:K33,Izračuni!AC30:AI30,\">0\")","v":0},"","",""]
[]
[]
[null,1,{"$f":"'Evidencija rezultata'!C4&COUNTIF('Evidencija rezultata'!$C$4:C4,'Evidencija rezultata'!C4)","v":"Moderni francuski1"}]
[null,2,{"$f":"'Evidencija rezultata'!C5&COUNTIF('Evidencija rezultata'!$C$4:C5,'Evidencija rezultata'!C5)","v":"Napredno programiranje u jeziku Java1"}]
[null,3,{"$f":"'Evidencija rezultata'!C6&COUNTIF('Evidencija rezultata'!$C$4:C6,'Evidencija rezultata'!C6)","v":"Španjolski1"}]
[null,4,{"$f":"'Evidencija rezultata'!C7&COUNTIF('Evidencija rezultata'!$C$4:C7,'Evidencija rezultata'!C7)","v":"Teorijska fizika1"}]
[null,5,{"$f":"'Evidencija rezultata'!C8&COUNTIF('Evidencija rezultata'!$C$4:C8,'Evidencija rezultata'!C8)","v":"Moderni francuski2"}]
[null,6,{"$f":"'Evidencija rezultata'!C9&COUNTIF('Evidencija rezultata'!$C$4:C9,'Evidencija rezultata'!C9)","v":"Moderni francuski3"}]
[null,7,{"$f":"'Evidencija rezultata'!C10&COUNTIF('Evidencija rezultata'!$C$4:C10,'Evidencija rezultata'!C10)","v":"Sastavak1"}]
[null,8,{"$f":"'Evidencija rezultata'!C11&COUNTIF('Evidencija rezultata'!$C$4:C11,'Evidencija rezultata'!C11)","v":"Matematika 11"}]
[null,9,{"$f":"'Evidencija rezultata'!C12&COUNTIF('Evidencija rezultata'!$C$4:C12,'Evidencija rezultata'!C12)","v":"Matematika 21"}]
[null,10,{"$f":"'Evidencija rezultata'!C13&COUNTIF('Evidencija rezultata'!$C$4:C14,'Evidencija rezultata'!C13)","v":"Matematika 12"}]
[null,11,{"$f":"'Evidencija rezultata'!C14&COUNTIF('Evidencija rezultata'!$C$4:C14,'Evidencija rezultata'!C14)","v":"Matematika 22"}]
[null,12,{"$f":"'Evidencija rezultata'!C15&COUNTIF('Evidencija rezultata'!$C$4:C15,'Evidencija rezultata'!C15)","v":"0"}]
[null,13,{"$f":"'Evidencija rezultata'!C16&COUNTIF('Evidencija rezultata'!$C$4:C16,'Evidencija rezultata'!C16)","v":"0"}]
[null,14,{"$f":"'Evidencija rezultata'!C17&COUNTIF('Evidencija rezultata'!$C$4:C17,'Evidencija rezultata'!C17)","v":"0"}]
[null,15,{"$f":"'Evidencija rezultata'!C18&COUNTIF('Evidencija rezultata'!$C$4:C18,'Evidencija rezultata'!C18)","v":"0"}]
[null,16,{"$f":"'Evidencija rezultata'!C19&COUNTIF('Evidencija rezultata'!$C$4:C19,'Evidencija rezultata'!C19)","v":"0"}]
[null,17,{"$f":"'Evidencija rezultata'!C20&COUNTIF('Evidencija rezultata'!$C$4:C20,'Evidencija rezultata'!C20)","v":"0"}]
[null,18,{"$f":"'Evidencija rezultata'!C21&COUNTIF('Evidencija rezultata'!$C$4:C21,'Evidencija rezultata'!C21)","v":"0"}]
[null,19,{"$f":"'Evidencija rezultata'!C22&COUNTIF('Evidencija rezultata'!$C$4:C22,'Evidencija rezultata'!C22)","v":"0"}]
[null,20,{"$f":"'Evidencija rezultata'!C23&COUNTIF('Evidencija rezultata'!$C$4:C23,'Evidencija rezultata'!C23)","v":"0"}]
[null,21,{"$f":"'Evidencija rezultata'!C24&COUNTIF('Evidencija rezultata'!$C$4:C24,'Evidencija rezultata'!C24)","v":"0"}]
[null,22,{"$f":"'Evidencija rezultata'!C25&COUNTIF('Evidencija rezultata'!$C$4:C25,'Evidencija rezultata'!C25)","v":"0"}]
[null,23,{"$f":"'Evidencija rezultata'!C26&COUNTIF('Evidencija rezultata'!$C$4:C26,'Evidencija rezultata'!C26)","v":"0"}]
[null,24,{"$f":"'Evidencija rezultata'!C27&COUNTIF('Evidencija rezultata'!$C$4:C27,'Evidencija rezultata'!C27)","v":"0"}]
[null,25,{"$f":"'Evidencija rezultata'!C28&COUNTIF('Evidencija rezultata'!$C$4:C28,'Evidencija rezultata'!C28)","v":"0"}]
[null,26,{"$f":"'Evidencija rezultata'!C29&COUNTIF('Evidencija rezultata'!$C$4:C29,'Evidencija rezultata'!C29)","v":"0"}]
[null,27,{"$f":"'Evidencija rezultata'!C30&COUNTIF('Evidencija rezultata'!$C$4:C30,'Evidencija rezultata'!C30)","v":"0"}]
[null,28,{"$f":"'Evidencija rezultata'!C31&COUNTIF('Evidencija rezultata'!$C$4:C31,'Evidencija rezultata'!C31)","v":"0"}]
[null,29,{"$f":"'Evidencija rezultata'!C32&COUNTIF('Evidencija rezultata'!$C$4:C32,'Evidencija rezultata'!C32)","v":"0"}]
[null,30,{"$f":"'Evidencija rezultata'!C33&COUNTIF('Evidencija rezultata'!$C$4:C33,'Evidencija rezultata'!C33)","v":"0"}]
[null,31,{"$f":"'Evidencija rezultata'!C34&COUNTIF('Evidencija rezultata'!$C$4:C34,'Evidencija rezultata'!C34)","v":"0"}]
[null,32,{"$f":"'Evidencija rezultata'!C35&COUNTIF('Evidencija rezultata'!$C$4:C35,'Evidencija rezultata'!C35)","v":"0"}]
[null,33,{"$f":"'Evidencija rezultata'!C36&COUNTIF('Evidencija rezultata'!$C$4:C36,'Evidencija rezultata'!C36)","v":"0"}]
[null,34,{"$f":"'Evidencija rezultata'!C37&COUNTIF('Evidencija rezultata'!$C$4:C37,'Evidencija rezultata'!C37)","v":"0"}]
[null,35,{"$f":"'Evidencija rezultata'!C38&COUNTIF('Evidencija rezultata'!$C$4:C38,'Evidencija rezultata'!C38)","v":"0"}]
[null,36,{"$f":"'Evidencija rezultata'!C39&COUNTIF('Evidencija rezultata'!$C$4:C39,'Evidencija rezultata'!C39)","v":"0"}]
[null,37,{"$f":"'Evidencija rezultata'!C40&COUNTIF('Evidencija rezultata'!$C$4:C40,'Evidencija rezultata'!C40)","v":"0"}]
[null,38,{"$f":"'Evidencija rezultata'!C41&COUNTIF('Evidencija rezultata'!$C$4:C41,'Evidencija rezultata'!C41)","v":"0"}]
[null,39,{"$f":"'Evidencija rezultata'!C42&COUNTIF('Evidencija rezultata'!$C$4:C42,'Evidencija rezultata'!C42)","v":"0"}]
[null,40,{"$f":"'Evidencija rezultata'!C43&COUNTIF('Evidencija rezultata'!$C$4:C43,'Evidencija rezultata'!C43)","v":"0"}]
[null,41,{"$f":"'Evidencija rezultata'!C44&COUNTIF('Evidencija rezultata'!$C$4:C44,'Evidencija rezultata'!C44)","v":"0"}]
[null,42,{"$f":"'Evidencija rezultata'!C45&COUNTIF('Evidencija rezultata'!$C$4:C45,'Evidencija rezultata'!C45)","v":"0"}]
[null,43,{"$f":"'Evidencija rezultata'!C46&COUNTIF('Evidencija rezultata'!$C$4:C46,'Evidencija rezultata'!C46)","v":"0"}]
[null,44,{"$f":"'Evidencija rezultata'!C47&COUNTIF('Evidencija rezultata'!$C$4:C47,'Evidencija rezultata'!C47)","v":"0"}]
[null,45,{"$f":"'Evidencija rezultata'!C48&COUNTIF('Evidencija rezultata'!$C$4:C48,'Evidencija rezultata'!C48)","v":"0"}]
[null,46,{"$f":"'Evidencija rezultata'!C49&COUNTIF('Evidencija rezultata'!$C$4:C49,'Evidencija rezultata'!C49)","v":"0"}]
[null,47,{"$f":"'Evidencija rezultata'!C50&COUNTIF('Evidencija rezultata'!$C$4:C50,'Evidencija rezultata'!C50)","v":"0"}]
[null,48,{"$f":"'Evidencija rezultata'!C51&COUNTIF('Evidencija rezultata'!$C$4:C51,'Evidencija rezultata'!C51)","v":"0"}]
[null,49,{"$f":"'Evidencija rezultata'!C52&COUNTIF('Evidencija rezultata'!$C$4:C52,'Evidencija rezultata'!C52)","v":"0"}]
[null,50,{"$f":"'Evidencija rezultata'!C53&COUNTIF('Evidencija rezultata'!$C$4:C53,'Evidencija rezultata'!C53)","v":"0"}]
[null,51,{"$f":"'Evidencija rezultata'!C54&COUNTIF('Evidencija rezultata'!$C$4:C54,'Evidencija rezultata'!C54)","v":"0"}]
[null,52,{"$f":"'Evidencija rezultata'!C55&COUNTIF('Evidencija rezultata'!$C$4:C55,'Evidencija rezultata'!C55)","v":"0"}]
[null,53,{"$f":"'Evidencija rezultata'!C56&COUNTIF('Evidencija rezultata'!$C$4:C56,'Evidencija rezultata'!C56)","v":"0"}]
[null,54,{"$f":"'Evidencija rezultata'!C57&COUNTIF('Evidencija rezultata'!$C$4:C57,'Evidencija rezultata'!C57)","v":"0"}]
[null,55,{"$f":"'Evidencija rezultata'!C58&COUNTIF('Evidencija rezultata'!$C$4:C58,'Evidencija rezultata'!C58)","v":"0"}]
[null,56,{"$f":"'Evidencija rezultata'!C59&COUNTIF('Evidencija rezultata'!$C$4:C59,'Evidencija rezultata'!C59)","v":"0"}]
[null,57,{"$f":"'Evidencija rezultata'!C60&COUNTIF('Evidencija rezultata'!$C$4:C60,'Evidencija rezultata'!C60)","v":"0"}]
[null,58,{"$f":"'Evidencija rezultata'!C61&COUNTIF('Evidencija rezultata'!$C$4:C61,'Evidencija rezultata'!C61)","v":"0"}]
[null,59,{"$f":"'Evidencija rezultata'!C62&COUNTIF('Evidencija rezultata'!$C$4:C62,'Evidencija rezultata'!C62)","v":"0"}]
[null,60,{"$f":"'Evidencija rezultata'!C63&COUNTIF('Evidencija rezultata'!$C$4:C63,'Evidencija rezultata'!C63)","v":"0"}]
[null,61,{"$f":"'Evidencija rezultata'!C64&COUNTIF('Evidencija rezultata'!$C$4:C64,'Evidencija rezultata'!C64)","v":"0"}]
[null,62,{"$f":"'Evidencija rezultata'!C65&COUNTIF('Evidencija rezultata'!$C$4:C65,'Evidencija rezultata'!C65)","v":"0"}]
[null,63,{"$f":"'Evidencija rezultata'!C66&COUNTIF('Evidencija rezultata'!$C$4:C66,'Evidencija rezultata'!C66)","v":"0"}]
[null,64,{"$f":"'Evidencija rezultata'!C67&COUNTIF('Evidencija rezultata'!$C$4:C67,'Evidencija rezultata'!C67)","v":"0"}]
[null,65,{"$f":"'Evidencija rezultata'!C68&COUNTIF('Evidencija rezultata'!$C$4:C68,'Evidencija rezultata'!C68)","v":"0"}]
[null,66,{"$f":"'Evidencija rezultata'!C69&COUNTIF('Evidencija rezultata'!$C$4:C69,'Evidencija rezultata'!C69)","v":"0"}]
[null,67,{"$f":"'Evidencija rezultata'!C70&COUNTIF('Evidencija rezultata'!$C$4:C70,'Evidencija rezultata'!C70)","v":"0"}]
[null,68,{"$f":"'Evidencija rezultata'!C71&COUNTIF('Evidencija rezultata'!$C$4:C71,'Evidencija rezultata'!C71)","v":"0"}]
[null,69,{"$f":"'Evidencija rezultata'!C72&COUNTIF('Evidencija rezultata'!$C$4:C72,'Evidencija rezultata'!C72)","v":"0"}]
[null,70,{"$f":"'Evidencija rezultata'!C73&COUNTIF('Evidencija rezultata'!$C$4:C73,'Evidencija rezultata'!C73)","v":"0"}]
[null,71,{"$f":"'Evidencija rezultata'!C74&COUNTIF('Evidencija rezultata'!$C$4:C74,'Evidencija rezultata'!C74)","v":"0"}]
[null,72,{"$f":"'Evidencija rezultata'!C75&COUNTIF('Evidencija rezultata'!$C$4:C75,'Evidencija rezultata'!C75)","v":"0"}]
[null,73,{"$f":"'Evidencija rezultata'!C76&COUNTIF('Evidencija rezultata'!$C$4:C76,'Evidencija rezultata'!C76)","v":"0"}]
[null,74,{"$f":"'Evidencija rezultata'!C77&COUNTIF('Evidencija rezultata'!$C$4:C77,'Evidencija rezultata'!C77)","v":"0"}]
[null,75,{"$f":"'Evidencija rezultata'!C78&COUNTIF('Evidencija rezultata'!$C$4:C78,'Evidencija rezultata'!C78)","v":"0"}]
[null,76,{"$f":"'Evidencija rezultata'!C79&COUNTIF('Evidencija rezultata'!$C$4:C79,'Evidencija rezultata'!C79)","v":"0"}]
[null,77,{"$f":"'Evidencija rezultata'!C80&COUNTIF('Evidencija rezultata'!$C$4:C80,'Evidencija rezultata'!C80)","v":"0"}]
[null,78,{"$f":"'Evidencija rezultata'!C81&COUNTIF('Evidencija rezultata'!$C$4:C81,'Evidencija rezultata'!C81)","v":"0"}]
[null,79,{"$f":"'Evidencija rezultata'!C82&COUNTIF('Evidencija rezultata'!$C$4:C82,'Evidencija rezultata'!C82)","v":"0"}]
[null,80,{"$f":"'Evidencija rezultata'!C83&COUNTIF('Evidencija rezultata'!$C$4:C83,'Evidencija rezultata'!C83)","v":"0"}]
[null,81,{"$f":"'Evidencija rezultata'!C84&COUNTIF('Evidencija rezultata'!$C$4:C84,'Evidencija rezultata'!C84)","v":"0"}]
[null,82,{"$f":"'Evidencija rezultata'!C85&COUNTIF('Evidencija rezultata'!$C$4:C85,'Evidencija rezultata'!C85)","v":"0"}]
[null,83,{"$f":"'Evidencija rezultata'!C86&COUNTIF('Evidencija rezultata'!$C$4:C86,'Evidencija rezultata'!C86)","v":"0"}]
[null,84,{"$f":"'Evidencija rezultata'!C87&COUNTIF('Evidencija rezultata'!$C$4:C87,'Evidencija rezultata'!C87)","v":"0"}]
[null,85,{"$f":"'Evidencija rezultata'!C88&COUNTIF('Evidencija rezultata'!$C$4:C88,'Evidencija rezultata'!C88)","v":"0"}]
[null,86,{"$f":"'Evidencija rezultata'!C89&COUNTIF('Evidencija rezultata'!$C$4:C89,'Evidencija rezultata'!C89)","v":"0"}]
[null,87,{"$f":"'Evidencija rezultata'!C90&COUNTIF('Evidencija rezultata'!$C$4:C90,'Evidencija rezultata'!C90)","v":"0"}]
[null,88,{"$f":"'Evidencija rezultata'!C91&COUNTIF('Evidencija rezultata'!$C$4:C91,'Evidencija rezultata'!C91)","v":"0"}]
[null,89,{"$f":"'Evidencija rezultata'!C92&COUNTIF('Evidencija rezultata'!$C$4:C92,'Evidencija rezultata'!C92)","v":"0"}]
[null,90,{"$f":"'Evidencija rezultata'!C93&COUNTIF('Evidencija rezultata'!$C$4:C93,'Evidencija rezultata'!C93)","v":"0"}]
[null,91,{"$f":"'Evidencija rezultata'!C94&COUNTIF('Evidencija rezultata'!$C$4:C94,'Evidencija rezultata'!C94)","v":"0"}]
[null,92,{"$f":"'Evidencija rezultata'!C95&COUNTIF('Evidencija rezultata'!$C$4:C95,'Evidencija rezultata'!C95)","v":"0"}]
[null,93,{"$f":"'Evidencija rezultata'!C96&COUNTIF('Evidencija rezultata'!$C$4:C96,'Evidencija rezultata'!C96)","v":"0"}]
[null,94,{"$f":"'Evidencija rezultata'!C97&COUNTIF('Evidencija rezultata'!$C$4:C97,'Evidencija rezultata'!C97)","v":"0"}]
[null,95,{"$f":"'Evidencija rezultata'!C98&COUNTIF('Evidencija rezultata'!$C$4:C98,'Evidencija rezultata'!C98)","v":"0"}]
[null,96,{"$f":"'Evidencija rezultata'!C99&COUNTIF('Evidencija rezultata'!$C$4:C99,'Evidencija rezultata'!C99)","v":"0"}]
[null,97,{"$f":"'Evidencija rezultata'!C100&COUNTIF('Evidencija rezultata'!$C$4:C100,'Evidencija rezultata'!C100)","v":"0"}]
[null,98,{"$f":"'Evidencija rezultata'!C101&COUNTIF('Evidencija rezultata'!$C$4:C101,'Evidencija rezultata'!C101)","v":"0"}]
[null,99,{"$f":"'Evidencija rezultata'!C102&COUNTIF('Evidencija rezultata'!$C$4:C102,'Evidencija rezultata'!C102)","v":"0"}]
[null,100,{"$f":"'Evidencija rezultata'!C103&COUNTIF('Evidencija rezultata'!$C$4:C103,'Evidencija rezultata'!C103)","v":"0"}]
[null,101,{"$f":"'Evidencija rezultata'!C104&COUNTIF('Evidencija rezultata'!$C$4:C104,'Evidencija rezultata'!C104)","v":"0"}]
[null,102,{"$f":"'Evidencija rezultata'!C105&COUNTIF('Evidencija rezultata'!$C$4:C105,'Evidencija rezultata'!C105)","v":"0"}]
[null,103,{"$f":"'Evidencija rezultata'!C106&COUNTIF('Evidencija rezultata'!$C$4:C106,'Evidencija rezultata'!C106)","v":"0"}]
[null,104,{"$f":"'Evidencija rezultata'!C107&COUNTIF('Evidencija rezultata'!$C$4:C107,'Evidencija rezultata'!C107)","v":"0"}]
[null,105,{"$f":"'Evidencija rezultata'!C108&COUNTIF('Evidencija rezultata'!$C$4:C108,'Evidencija rezultata'!C108)","v":"0"}]
[null,106,{"$f":"'Evidencija rezultata'!C109&COUNTIF('Evidencija rezultata'!$C$4:C109,'Evidencija rezultata'!C109)","v":"0"}]
[null,107,{"$f":"'Evidencija rezultata'!C110&COUNTIF('Evidencija rezultata'!$C$4:C110,'Evidencija rezultata'!C110)","v":"0"}]
[null,108,{"$f":"'Evidencija rezultata'!C111&COUNTIF('Evidencija rezultata'!$C$4:C111,'Evidencija rezultata'!C111)","v":"0"}]
[null,109,{"$f":"'Evidencija rezultata'!C112&COUNTIF('Evidencija rezultata'!$C$4:C112,'Evidencija rezultata'!C112)","v":"0"}]
[null,110,{"$f":"'Evidencija rezultata'!C113&COUNTIF('Evidencija rezultata'!$C$4:C113,'Evidencija rezultata'!C113)","v":"0"}]
[null,111,{"$f":"'Evidencija rezultata'!C114&COUNTIF('Evidencija rezultata'!$C$4:C114,'Evidencija rezultata'!C114)","v":"0"}]
[null,112,{"$f":"'Evidencija rezultata'!C115&COUNTIF('Evidencija rezultata'!$C$4:C115,'Evidencija rezultata'!C115)","v":"0"}]
[null,113,{"$f":"'Evidencija rezultata'!C116&COUNTIF('Evidencija rezultata'!$C$4:C116,'Evidencija rezultata'!C116)","v":"0"}]
[null,114,{"$f":"'Evidencija rezultata'!C117&COUNTIF('Evidencija rezultata'!$C$4:C117,'Evidencija rezultata'!C117)","v":"0"}]
[null,115,{"$f":"'Evidencija rezultata'!C118&COUNTIF('Evidencija rezultata'!$C$4:C118,'Evidencija rezultata'!C118)","v":"0"}]
[null,116,{"$f":"'Evidencija rezultata'!C119&COUNTIF('Evidencija rezultata'!$C$4:C119,'Evidencija rezultata'!C119)","v":"0"}]
[null,117,{"$f":"'Evidencija rezultata'!C120&COUNTIF('Evidencija rezultata'!$C$4:C120,'Evidencija rezultata'!C120)","v":"0"}]
[null,118,{"$f":"'Evidencija rezultata'!C121&COUNTIF('Evidencija rezultata'!$C$4:C121,'Evidencija rezultata'!C121)","v":"0"}]
[null,119,{"$f":"'Evidencija rezultata'!C122&COUNTIF('Evidencija rezultata'!$C$4:C122,'Evidencija rezultata'!C122)","v":"0"}]
[null,120,{"$f":"'Evidencija rezultata'!C123&COUNTIF('Evidencija rezultata'!$C$4:C123,'Evidencija rezultata'!C123)","v":"0"}]
[null,121,{"$f":"'Evidencija rezultata'!C124&COUNTIF('Evidencija rezultata'!$C$4:C124,'Evidencija rezultata'!C124)","v":"0"}]
[null,122,{"$f":"'Evidencija rezultata'!C125&COUNTIF('Evidencija rezultata'!$C$4:C125,'Evidencija rezultata'!C125)","v":"0"}]
[null,123,{"$f":"'Evidencija rezultata'!C126&COUNTIF('Evidencija rezultata'!$C$4:C126,'Evidencija rezultata'!C126)","v":"0"}]
[null,124,{"$f":"'Evidencija rezultata'!C127&COUNTIF('Evidencija rezultata'!$C$4:C127,'Evidencija rezultata'!C127)","v":"0"}]
[null,125,{"$f":"'Evidencija rezultata'!C128&COUNTIF('Evidencija rezultata'!$C$4:C128,'Evidencija rezultata'!C128)","v":"0"}]
[null,126,{"$f":"'Evidencija rezultata'!C129&COUNTIF('Evidencija rezultata'!$C$4:C129,'Evidencija rezultata'!C129)","v":"0"}]
[null,127,{"$f":"'Evidencija rezultata'!C130&COUNTIF('Evidencija rezultata'!$C$4:C130,'Evidencija rezultata'!C130)","v":"0"}]
[null,128,{"$f":"'Evidencija rezultata'!C131&COUNTIF('Evidencija rezultata'!$C$4:C131,'Evidencija rezultata'!C131)","v":"0"}]
[null,129,{"$f":"'Evidencija rezultata'!C132&COUNTIF('Evidencija rezultata'!$C$4:C132,'Evidencija rezultata'!C132)","v":"0"}]
[null,130,{"$f":"'Evidencija rezultata'!C133&COUNTIF('Evidencija rezultata'!$C$4:C133,'Evidencija rezultata'!C133)","v":"0"}]
[null,131,{"$f":"'Evidencija rezultata'!C134&COUNTIF('Evidencija rezultata'!$C$4:C134,'Evidencija rezultata'!C134)","v":"0"}]
[null,132,{"$f":"'Evidencija rezultata'!C135&COUNTIF('Evidencija rezultata'!$C$4:C135,'Evidencija rezultata'!C135)","v":"0"}]
[null,133,{"$f":"'Evidencija rezultata'!C136&COUNTIF('Evidencija rezultata'!$C$4:C136,'Evidencija rezultata'!C136)","v":"0"}]
[null,134,{"$f":"'Evidencija rezultata'!C137&COUNTIF('Evidencija rezultata'!$C$4:C137,'Evidencija rezultata'!C137)","v":"0"}]
[null,135,{"$f":"'Evidencija rezultata'!C138&COUNTIF('Evidencija rezultata'!$C$4:C138,'Evidencija rezultata'!C138)","v":"0"}]
[null,136,{"$f":"'Evidencija rezultata'!C139&COUNTIF('Evidencija rezultata'!$C$4:C139,'Evidencija rezultata'!C139)","v":"0"}]
[null,137,{"$f":"'Evidencija rezultata'!C140&COUNTIF('Evidencija rezultata'!$C$4:C140,'Evidencija rezultata'!C140)","v":"0"}]
[null,138,{"$f":"'Evidencija rezultata'!C141&COUNTIF('Evidencija rezultata'!$C$4:C141,'Evidencija rezultata'!C141)","v":"0"}]
[null,139,{"$f":"'Evidencija rezultata'!C142&COUNTIF('Evidencija rezultata'!$C$4:C142,'Evidencija rezultata'!C142)","v":"0"}]
[null,140,{"$f":"'Evidencija rezultata'!C143&COUNTIF('Evidencija rezultata'!$C$4:C143,'Evidencija rezultata'!C143)","v":"0"}]
[null,141,{"$f":"'Evidencija rezultata'!C144&COUNTIF('Evidencija rezultata'!$C$4:C144,'Evidencija rezultata'!C144)","v":"0"}]
[null,142,{"$f":"'Evidencija rezultata'!C145&COUNTIF('Evidencija rezultata'!$C$4:C145,'Evidencija rezultata'!C145)","v":"0"}]
[null,143,{"$f":"'Evidencija rezultata'!C146&COUNTIF('Evidencija rezultata'!$C$4:C146,'Evidencija rezultata'!C146)","v":"0"}]
[null,144,{"$f":"'Evidencija rezultata'!C147&COUNTIF('Evidencija rezultata'!$C$4:C147,'Evidencija rezultata'!C147)","v":"0"}]
[null,145,{"$f":"'Evidencija rezultata'!C148&COUNTIF('Evidencija rezultata'!$C$4:C148,'Evidencija rezultata'!C148)","v":"0"}]
[null,146,{"$f":"'Evidencija rezultata'!C149&COUNTIF('Evidencija rezultata'!$C$4:C149,'Evidencija rezultata'!C149)","v":"0"}]
[null,147,{"$f":"'Evidencija rezultata'!C150&COUNTIF('Evidencija rezultata'!$C$4:C150,'Evidencija rezultata'!C150)","v":"0"}]
[null,148,{"$f":"'Evidencija rezultata'!C151&COUNTIF('Evidencija rezultata'!$C$4:C151,'Evidencija rezultata'!C151)","v":"0"}]
[null,149,{"$f":"'Evidencija rezultata'!C152&COUNTIF('Evidencija rezultata'!$C$4:C152,'Evidencija rezultata'!C152)","v":"0"}]
[null,150,{"$f":"'Evidencija rezultata'!C153&COUNTIF('Evidencija rezultata'!$C$4:C153,'Evidencija rezultata'!C153)","v":"0"}]
[null,151,{"$f":"'Evidencija rezultata'!C154&COUNTIF('Evidencija rezultata'!$C$4:C154,'Evidencija rezultata'!C154)","v":"0"}]
[null,152,{"$f":"'Evidencija rezultata'!C155&COUNTIF('Evidencija rezultata'!$C$4:C155,'Evidencija rezultata'!C155)","v":"0"}]
[null,153,{"$f":"'Evidencija rezultata'!C156&COUNTIF('Evidencija rezultata'!$C$4:C156,'Evidencija rezultata'!C156)","v":"0"}]
[null,154,{"$f":"'Evidencija rezultata'!C157&COUNTIF('Evidencija rezultata'!$C$4:C157,'Evidencija rezultata'!C157)","v":"0"}]
[null,155,{"$f":"'Evidencija rezultata'!C158&COUNTIF('Evidencija rezultata'!$C$4:C158,'Evidencija rezultata'!C158)","v":"0"}]
[null,156,{"$f":"'Evidencija rezultata'!C159&COUNTIF('Evidencija rezultata'!$C$4:C159,'Evidencija rezultata'!C159)","v":"0"}]
[null,157,{"$f":"'Evidencija rezultata'!C160&COUNTIF('Evidencija rezultata'!$C$4:C160,'Evidencija rezultata'!C160)","v":"0"}]
[null,158,{"$f":"'Evidencija rezultata'!C161&COUNTIF('Evidencija rezultata'!$C$4:C161,'Evidencija rezultata'!C161)","v":"0"}]
[null,159,{"$f":"'Evidencija rezultata'!C162&COUNTIF('Evidencija rezultata'!$C$4:C162,'Evidencija rezultata'!C162)","v":"0"}]
[null,160,{"$f":"'Evidencija rezultata'!C163&COUNTIF('Evidencija rezultata'!$C$4:C163,'Evidencija rezultata'!C163)","v":"0"}]
[null,161,{"$f":"'Evidencija rezultata'!C164&COUNTIF('Evidencija rezultata'!$C$4:C164,'Evidencija rezultata'!C164)","v":"0"}]
[null,162,{"$f":"'Evidencija rezultata'!C165&COUNTIF('Evidencija rezultata'!$C$4:C165,'Evidencija rezultata'!C165)","v":"0"}]
[null,163,{"$f":"'Evidencija rezultata'!C166&COUNTIF('Evidencija rezultata'!$C$4:C166,'Evidencija rezultata'!C166)","v":"0"}]
[null,164,{"$f":"'Evidencija rezultata'!C167&COUNTIF('Evidencija rezultata'!$C$4:C167,'Evidencija rezultata'!C167)","v":"0"}]
[null,165,{"$f":"'Evidencija rezultata'!C168&COUNTIF('Evidencija rezultata'!$C$4:C168,'Evidencija rezultata'!C168)","v":"0"}]
[null,166,{"$f":"'Evidencija rezultata'!C169&COUNTIF('Evidencija rezultata'!$C$4:C169,'Evidencija rezultata'!C169)","v":"0"}]
[null,167,{"$f":"'Evidencija rezultata'!C170&COUNTIF('Evidencija rezultata'!$C$4:C170,'Evidencija rezultata'!C170)","v":"0"}]
[null,168,{"$f":"'Evidencija rezultata'!C171&COUNTIF('Evidencija rezultata'!$C$4:C171,'Evidencija rezultata'!C171)","v":"0"}]
[null,169,{"$f":"'Evidencija rezultata'!C172&COUNTIF('Evidencija rezultata'!$C$4:C172,'Evidencija rezultata'!C172)","v":"0"}]
[null,170,{"$f":"'Evidencija rezultata'!C173&COUNTIF('Evidencija rezultata'!$C$4:C173,'Evidencija rezultata'!C173)","v":"0"}]
[null,171,{"$f":"'Evidencija rezultata'!C174&COUNTIF('Evidencija rezultata'!$C$4:C174,'Evidencija rezultata'!C174)","v":"0"}]
[null,172,{"$f":"'Evidencija rezultata'!C175&COUNTIF('Evidencija rezultata'!$C$4:C175,'Evidencija rezultata'!C175)","v":"0"}]
[null,173,{"$f":"'Evidencija rezultata'!C176&COUNTIF('Evidencija rezultata'!$C$4:C176,'Evidencija rezultata'!C176)","v":"0"}]
[null,174,{"$f":"'Evidencija rezultata'!C177&COUNTIF('Evidencija rezultata'!$C$4:C177,'Evidencija rezultata'!C177)","v":"0"}]
[null,175,{"$f":"'Evidencija rezultata'!C178&COUNTIF('Evidencija rezultata'!$C$4:C178,'Evidencija rezultata'!C178)","v":"0"}]
[null,176,{"$f":"'Evidencija rezultata'!C179&COUNTIF('Evidencija rezultata'!$C$4:C179,'Evidencija rezultata'!C179)","v":"0"}]
[null,177,{"$f":"'Evidencija rezultata'!C180&COUNTIF('Evidencija rezultata'!$C$4:C180,'Evidencija rezultata'!C180)","v":"0"}]
[null,178,{"$f":"'Evidencija rezultata'!C181&COUNTIF('Evidencija rezultata'!$C$4:C181,'Evidencija rezultata'!C181)","v":"0"}]
[null,179,{"$f":"'Evidencija rezultata'!C182&COUNTIF('Evidencija rezultata'!$C$4:C182,'Evidencija rezultata'!C182)","v":"0"}]
[null,180,{"$f":"'Evidencija rezultata'!C183&COUNTIF('Evidencija rezultata'!$C$4:C183,'Evidencija rezultata'!C183)","v":"0"}]
[null,181,{"$f":"'Evidencija rezultata'!C184&COUNTIF('Evidencija rezultata'!$C$4:C184,'Evidencija rezultata'!C184)","v":"0"}]
[null,182,{"$f":"'Evidencija rezultata'!C185&COUNTIF('Evidencija rezultata'!$C$4:C185,'Evidencija rezultata'!C185)","v":"0"}]
[null,183,{"$f":"'Evidencija rezultata'!C186&COUNTIF('Evidencija rezultata'!$C$4:C186,'Evidencija rezultata'!C186)","v":"0"}]
[null,184,{"$f":"'Evidencija rezultata'!C187&COUNTIF('Evidencija rezultata'!$C$4:C187,'Evidencija rezultata'!C187)","v":"0"}]
[null,185,{"$f":"'Evidencija rezultata'!C188&COUNTIF('Evidencija rezultata'!$C$4:C188,'Evidencija rezultata'!C188)","v":"0"}]
[null,186,{"$f":"'Evidencija rezultata'!C189&COUNTIF('Evidencija rezultata'!$C$4:C189,'Evidencija rezultata'!C189)","v":"0"}]
[null,187,{"$f":"'Evidencija rezultata'!C190&COUNTIF('Evidencija rezultata'!$C$4:C190,'Evidencija rezultata'!C190)","v":"0"}]
[null,188,{"$f":"'Evidencija rezultata'!C191&COUNTIF('Evidencija rezultata'!$C$4:C191,'Evidencija rezultata'!C191)","v":"0"}]
[null,189,{"$f":"'Evidencija rezultata'!C192&COUNTIF('Evidencija rezultata'!$C$4:C192,'Evidencija rezultata'!C192)","v":"0"}]
[null,190,{"$f":"'Evidencija rezultata'!C193&COUNTIF('Evidencija rezultata'!$C$4:C193,'Evidencija rezultata'!C193)","v":"0"}]
[null,191,{"$f":"'Evidencija rezultata'!C194&COUNTIF('Evidencija rezultata'!$C$4:C194,'Evidencija rezultata'!C194)","v":"0"}]
[null,192,{"$f":"'Evidencija rezultata'!C195&COUNTIF('Evidencija rezultata'!$C$4:C195,'Evidencija rezultata'!C195)","v":"0"}]
[null,193,{"$f":"'Evidencija rezultata'!C196&COUNTIF('Evidencija rezultata'!$C$4:C196,'Evidencija rezultata'!C196)","v":"0"}]
[null,194,{"$f":"'Evidencija rezultata'!C197&COUNTIF('Evidencija rezultata'!$C$4:C197,'Evidencija rezultata'!C197)","v":"0"}]
[null,195,{"$f":"'Evidencija rezultata'!C198&COUNTIF('Evidencija rezultata'!$C$4:C198,'Evidencija rezultata'!C198)","v":"0"}]
[null,196,{"$f":"'Evidencija rezultata'!C199&COUNTIF('Evidencija rezultata'!$C$4:C199,'Evidencija rezultata'!C199)","v":"0"}]
[null,197,{"$f":"'Evidencija rezultata'!C200&COUNTIF('Evidencija rezultata'!$C$4:C200,'Evidencija rezultata'!C200)","v":"0"}]
[null,198,{"$f":"'Evidencija rezultata'!C201&COUNTIF('Evidencija rezultata'!$C$4:C201,'Evidencija rezultata'!C201)","v":"0"}]
[null,199,{"$f":"'Evidencija rezultata'!C202&COUNTIF('Evidencija rezultata'!$C$4:C202,'Evidencija rezultata'!C202)","v":"0"}]
[null,200,{"$f":"'Evidencija rezultata'!C203&COUNTIF('Evidencija rezultata'!$C$4:C203,'Evidencija rezultata'!C203)","v":"0"}]
[null,201,{"$f":"'Evidencija rezultata'!C204&COUNTIF('Evidencija rezultata'!$C$4:C204,'Evidencija rezultata'!C204)","v":"0"}]
[null,202,{"$f":"'Evidencija rezultata'!C205&COUNTIF('Evidencija rezultata'!$C$4:C205,'Evidencija rezultata'!C205)","v":"0"}]
[null,203,{"$f":"'Evidencija rezultata'!C206&COUNTIF('Evidencija rezultata'!$C$4:C206,'Evidencija rezultata'!C206)","v":"0"}]
[null,204,{"$f":"'Evidencija rezultata'!C207&COUNTIF('Evidencija rezultata'!$C$4:C207,'Evidencija rezultata'!C207)","v":"0"}]
[null,205,{"$f":"'Evidencija rezultata'!C208&COUNTIF('Evidencija rezultata'!$C$4:C208,'Evidencija rezultata'!C208)","v":"0"}]
[null,206,{"$f":"'Evidencija rezultata'!C209&COUNTIF('Evidencija rezultata'!$C$4:C209,'Evidencija rezultata'!C209)","v":"0"}]
[null,207,{"$f":"'Evidencija rezultata'!C210&COUNTIF('Evidencija rezultata'!$C$4:C210,'Evidencija rezultata'!C210)","v":"0"}]
[null,208,{"$f":"'Evidencija rezultata'!C211&COUNTIF('Evidencija rezultata'!$C$4:C211,'Evidencija rezultata'!C211)","v":"0"}]
[null,209,{"$f":"'Evidencija rezultata'!C212&COUNTIF('Evidencija rezultata'!$C$4:C212,'Evidencija rezultata'!C212)","v":"0"}]
[null,210,{"$f":"'Evidencija rezultata'!C213&COUNTIF('Evidencija rezultata'!$C$4:C213,'Evidencija rezultata'!C213)","v":"0"}]
[null,211,{"$f":"'Evidencija rezultata'!C214&COUNTIF('Evidencija rezultata'!$C$4:C214,'Evidencija rezultata'!C214)","v":"0"}]
[null,212,{"$f":"'Evidencija rezultata'!C215&COUNTIF('Evidencija rezultata'!$C$4:C215,'Evidencija rezultata'!C215)","v":"0"}]
[null,213,{"$f":"'Evidencija rezultata'!C216&COUNTIF('Evidencija rezultata'!$C$4:C216,'Evidencija rezultata'!C216)","v":"0"}]
[null,214,{"$f":"'Evidencija rezultata'!C217&COUNTIF('Evidencija rezultata'!$C$4:C217,'Evidencija rezultata'!C217)","v":"0"}]
[null,215,{"$f":"'Evidencija rezultata'!C218&COUNTIF('Evidencija rezultata'!$C$4:C218,'Evidencija rezultata'!C218)","v":"0"}]
[null,216,{"$f":"'Evidencija rezultata'!C219&COUNTIF('Evidencija rezultata'!$C$4:C219,'Evidencija rezultata'!C219)","v":"0"}]
[null,217,{"$f":"'Evidencija rezultata'!C220&COUNTIF('Evidencija rezultata'!$C$4:C220,'Evidencija rezultata'!C220)","v":"0"}]
[null,218,{"$f":"'Evidencija rezultata'!C221&COUNTIF('Evidencija rezultata'!$C$4:C221,'Evidencija rezultata'!C221)","v":"0"}]
[null,219,{"$f":"'Evidencija rezultata'!C222&COUNTIF('Evidencija rezultata'!$C$4:C222,'Evidencija rezultata'!C222)","v":"0"}]
[null,220,{"$f":"'Evidencija rezultata'!C223&COUNTIF('Evidencija rezultata'!$C$4:C223,'Evidencija rezultata'!C223)","v":"0"}]
[null,221,{"$f":"'Evidencija rezultata'!C224&COUNTIF('Evidencija rezultata'!$C$4:C224,'Evidencija rezultata'!C224)","v":"0"}]
[null,222,{"$f":"'Evidencija rezultata'!C225&COUNTIF('Evidencija rezultata'!$C$4:C225,'Evidencija rezultata'!C225)","v":"0"}]
[null,223,{"$f":"'Evidencija rezultata'!C226&COUNTIF('Evidencija rezultata'!$C$4:C226,'Evidencija rezultata'!C226)","v":"0"}]
[null,224,{"$f":"'Evidencija rezultata'!C227&COUNTIF('Evidencija rezultata'!$C$4:C227,'Evidencija rezultata'!C227)","v":"0"}]
[null,225,{"$f":"'Evidencija rezultata'!C228&COUNTIF('Evidencija rezultata'!$C$4:C228,'Evidencija rezultata'!C228)","v":"0"}]
[null,226,{"$f":"'Evidencija rezultata'!C229&COUNTIF('Evidencija rezultata'!$C$4:C229,'Evidencija rezultata'!C229)","v":"0"}]
[null,227,{"$f":"'Evidencija rezultata'!C230&COUNTIF('Evidencija rezultata'!$C$4:C230,'Evidencija rezultata'!C230)","v":"0"}]
[null,228,{"$f":"'Evidencija rezultata'!C231&COUNTIF('Evidencija rezultata'!$C$4:C231,'Evidencija rezultata'!C231)","v":"0"}]
[null,229,{"$f":"'Evidencija rezultata'!C232&COUNTIF('Evidencija rezultata'!$C$4:C232,'Evidencija rezultata'!C232)","v":"0"}]
[null,230,{"$f":"'Evidencija rezultata'!C233&COUNTIF('Evidencija rezultata'!$C$4:C233,'Evidencija rezultata'!C233)","v":"0"}]
[null,231,{"$f":"'Evidencija rezultata'!C234&COUNTIF('Evidencija rezultata'!$C$4:C234,'Evidencija rezultata'!C234)","v":"0"}]
[null,232,{"$f":"'Evidencija rezultata'!C235&COUNTIF('Evidencija rezultata'!$C$4:C235,'Evidencija rezultata'!C235)","v":"0"}]
[null,233,{"$f":"'Evidencija rezultata'!C236&COUNTIF('Evidencija rezultata'!$C$4:C236,'Evidencija rezultata'!C236)","v":"0"}]
[null,234,{"$f":"'Evidencija rezultata'!C237&COUNTIF('Evidencija rezultata'!$C$4:C237,'Evidencija rezultata'!C237)","v":"0"}]
[null,235,{"$f":"'Evidencija rezultata'!C238&COUNTIF('Evidencija rezultata'!$C$4:C238,'Evidencija rezultata'!C238)","v":"0"}]
[null,236,{"$f":"'Evidencija rezultata'!C239&COUNTIF('Evidencija rezultata'!$C$4:C239,'Evidencija rezultata'!C239)","v":"0"}]
[null,237,{"$f":"'Evidencija rezultata'!C240&COUNTIF('Evidencija rezultata'!$C$4:C240,'Evidencija rezultata'!C240)","v":"0"}]
[null,238,{"$f":"'Evidencija rezultata'!C241&COUNTIF('Evidencija rezultata'!$C$4:C241,'Evidencija rezultata'!C241)","v":"0"}]
[null,239,{"$f":"'Evidencija rezultata'!C242&COUNTIF('Evidencija rezultata'!$C$4:C242,'Evidencija rezultata'!C242)","v":"0"}]
[null,240,{"$f":"'Evidencija rezultata'!C243&COUNTIF('Evidencija rezultata'!$C$4:C243,'Evidencija rezultata'!C243)","v":"0"}]
[null,241,{"$f":"'Evidencija rezultata'!C244&COUNTIF('Evidencija rezultata'!$C$4:C244,'Evidencija rezultata'!C244)","v":"0"}]
[null,242,{"$f":"'Evidencija rezultata'!C245&COUNTIF('Evidencija rezultata'!$C$4:C245,'Evidencija rezultata'!C245)","v":"0"}]
[null,243,{"$f":"'Evidencija rezultata'!C246&COUNTIF('Evidencija rezultata'!$C$4:C246,'Evidencija rezultata'!C246)","v":"0"}]
[null,244,{"$f":"'Evidencija rezultata'!C247&COUNTIF('Evidencija rezultata'!$C$4:C247,'Evidencija rezultata'!C247)","v":"0"}]
[null,245,{"$f":"'Evidencija rezultata'!C248&COUNTIF('Evidencija rezultata'!$C$4:C248,'Evidencija rezultata'!C248)","v":"0"}]
[null,246,{"$f":"'Evidencija rezultata'!C249&COUNTIF('Evidencija rezultata'!$C$4:C249,'Evidencija rezultata'!C249)","v":"0"}]
[null,247,{"$f":"'Evidencija rezultata'!C250&COUNTIF('Evidencija rezultata'!$C$4:C250,'Evidencija rezultata'!C250)","v":"0"}]
[null,248,{"$f":"'Evidencija rezultata'!C251&COUNTIF('Evidencija rezultata'!$C$4:C251,'Evidencija rezultata'!C251)","v":"0"}]
[null,249,{"$f":"'Evidencija rezultata'!C252&COUNTIF('Evidencija rezultata'!$C$4:C252,'Evidencija rezultata'!C252)","v":"0"}]
[null,250,{"$f":"'Evidencija rezultata'!C253&COUNTIF('Evidencija rezultata'!$C$4:C253,'Evidencija rezultata'!C253)","v":"0"}]
[null,251,{"$f":"'Evidencija rezultata'!C254&COUNTIF('Evidencija rezultata'!$C$4:C254,'Evidencija rezultata'!C254)","v":"0"}]
[null,252,{"$f":"'Evidencija rezultata'!C255&COUNTIF('Evidencija rezultata'!$C$4:C255,'Evidencija rezultata'!C255)","v":"0"}]
[null,253,{"$f":"'Evidencija rezultata'!C256&COUNTIF('Evidencija rezultata'!$C$4:C256,'Evidencija rezultata'!C256)","v":"0"}]
[null,254,{"$f":"'Evidencija rezultata'!C257&COUNTIF('Evidencija rezultata'!$C$4:C257,'Evidencija rezultata'!C257)","v":"0"}]
[null,255,{"$f":"'Evidencija rezultata'!C258&COUNTIF('Evidencija rezultata'!$C$4:C258,'Evidencija rezultata'!C258)","v":"0"}]
[null,256,{"$f":"'Evidencija rezultata'!C259&COUNTIF('Evidencija rezultata'!$C$4:C259,'Evidencija rezultata'!C259)","v":"0"}]
[null,257,{"$f":"'Evidencija rezultata'!C260&COUNTIF('Evidencija rezultata'!$C$4:C260,'Evidencija rezultata'!C260)","v":"0"}]
[null,258,{"$f":"'Evidencija rezultata'!C261&COUNTIF('Evidencija rezultata'!$C$4:C261,'Evidencija rezultata'!C261)","v":"0"}]
[null,259,{"$f":"'Evidencija rezultata'!C262&COUNTIF('Evidencija rezultata'!$C$4:C262,'Evidencija rezultata'!C262)","v":"0"}]
[null,260,{"$f":"'Evidencija rezultata'!C263&COUNTIF('Evidencija rezultata'!$C$4:C263,'Evidencija rezultata'!C263)","v":"0"}]
[null,261,{"$f":"'Evidencija rezultata'!C264&COUNTIF('Evidencija rezultata'!$C$4:C264,'Evidencija rezultata'!C264)","v":"0"}]
[null,262,{"$f":"'Evidencija rezultata'!C265&COUNTIF('Evidencija rezultata'!$C$4:C265,'Evidencija rezultata'!C265)","v":"0"}]
[null,263,{"$f":"'Evidencija rezultata'!C266&COUNTIF('Evidencija rezultata'!$C$4:C266,'Evidencija rezultata'!C266)","v":"0"}]
[null,264,{"$f":"'Evidencija rezultata'!C267&COUNTIF('Evidencija rezultata'!$C$4:C267,'Evidencija rezultata'!C267)","v":"0"}]
[null,265,{"$f":"'Evidencija rezultata'!C268&COUNTIF('Evidencija rezultata'!$C$4:C268,'Evidencija rezultata'!C268)","v":"0"}]
[null,266,{"$f":"'Evidencija rezultata'!C269&COUNTIF('Evidencija rezultata'!$C$4:C269,'Evidencija rezultata'!C269)","v":"0"}]
[null,267,{"$f":"'Evidencija rezultata'!C270&COUNTIF('Evidencija rezultata'!$C$4:C270,'Evidencija rezultata'!C270)","v":"0"}]
[null,268,{"$f":"'Evidencija rezultata'!C271&COUNTIF('Evidencija rezultata'!$C$4:C271,'Evidencija rezultata'!C271)","v":"0"}]
[null,269,{"$f":"'Evidencija rezultata'!C272&COUNTIF('Evidencija rezultata'!$C$4:C272,'Evidencija rezultata'!C272)","v":"0"}]
[null,270,{"$f":"'Evidencija rezultata'!C273&COUNTIF('Evidencija rezultata'!$C$4:C273,'Evidencija rezultata'!C273)","v":"0"}]
[null,271,{"$f":"'Evidencija rezultata'!C274&COUNTIF('Evidencija rezultata'!$C$4:C274,'Evidencija rezultata'!C274)","v":"0"}]
[null,272,{"$f":"'Evidencija rezultata'!C275&COUNTIF('Evidencija rezultata'!$C$4:C275,'Evidencija rezultata'!C275)","v":"0"}]
[null,273,{"$f":"'Evidencija rezultata'!C276&COUNTIF('Evidencija rezultata'!$C$4:C276,'Evidencija rezultata'!C276)","v":"0"}]
[null,274,{"$f":"'Evidencija rezultata'!C277&COUNTIF('Evidencija rezultata'!$C$4:C277,'Evidencija rezultata'!C277)","v":"0"}]
[null,275,{"$f":"'Evidencija rezultata'!C278&COUNTIF('Evidencija rezultata'!$C$4:C278,'Evidencija rezultata'!C278)","v":"0"}]
[null,276,{"$f":"'Evidencija rezultata'!C279&COUNTIF('Evidencija rezultata'!$C$4:C279,'Evidencija rezultata'!C279)","v":"0"}]
[null,277,{"$f":"'Evidencija rezultata'!C280&COUNTIF('Evidencija rezultata'!$C$4:C280,'Evidencija rezultata'!C280)","v":"0"}]
[null,278,{"$f":"'Evidencija rezultata'!C281&COUNTIF('Evidencija rezultata'!$C$4:C281,'Evidencija rezultata'!C281)","v":"0"}]
[null,279,{"$f":"'Evidencija rezultata'!C282&COUNTIF('Evidencija rezultata'!$C$4:C282,'Evidencija rezultata'!C282)","v":"0"}]
[null,280,{"$f":"'Evidencija rezultata'!C283&COUNTIF('Evidencija rezultata'!$C$4:C283,'Evidencija rezultata'!C283)","v":"0"}]
[null,281,{"$f":"'Evidencija rezultata'!C284&COUNTIF('Evidencija rezultata'!$C$4:C284,'Evidencija rezultata'!C284)","v":"0"}]
[null,282,{"$f":"'Evidencija rezultata'!C285&COUNTIF('Evidencija rezultata'!$C$4:C285,'Evidencija rezultata'!C285)","v":"0"}]
[null,283,{"$f":"'Evidencija rezultata'!C286&COUNTIF('Evidencija rezultata'!$C$4:C286,'Evidencija rezultata'!C286)","v":"0"}]
[null,284,{"$f":"'Evidencija rezultata'!C287&COUNTIF('Evidencija rezultata'!$C$4:C287,'Evidencija rezultata'!C287)","v":"0"}]
[null,285,{"$f":"'Evidencija rezultata'!C288&COUNTIF('Evidencija rezultata'!$C$4:C288,'Evidencija rezultata'!C288)","v":"0"}]
[null,286,{"$f":"'Evidencija rezultata'!C289&COUNTIF('Evidencija rezultata'!$C$4:C289,'Evidencija rezultata'!C289)","v":"0"}]
[null,287,{"$f":"'Evidencija rezultata'!C290&COUNTIF('Evidencija rezultata'!$C$4:C290,'Evidencija rezultata'!C290)","v":"0"}]
[null,288,{"$f":"'Evidencija rezultata'!C291&COUNTIF('Evidencija rezultata'!$C$4:C291,'Evidencija rezultata'!C291)","v":"0"}]
[null,289,{"$f":"'Evidencija rezultata'!C292&COUNTIF('Evidencija rezultata'!$C$4:C292,'Evidencija rezultata'!C292)","v":"0"}]
[null,290,{"$f":"'Evidencija rezultata'!C293&COUNTIF('Evidencija rezultata'!$C$4:C293,'Evidencija rezultata'!C293)","v":"0"}]
[null,291,{"$f":"'Evidencija rezultata'!C294&COUNTIF('Evidencija rezultata'!$C$4:C294,'Evidencija rezultata'!C294)","v":"0"}]
[null,292,{"$f":"'Evidencija rezultata'!C295&COUNTIF('Evidencija rezultata'!$C$4:C295,'Evidencija rezultata'!C295)","v":"0"}]
[null,293,{"$f":"'Evidencija rezultata'!C296&COUNTIF('Evidencija rezultata'!$C$4:C296,'Evidencija rezultata'!C296)","v":"0"}]
[null,294,{"$f":"'Evidencija rezultata'!C297&COUNTIF('Evidencija rezultata'!$C$4:C297,'Evidencija rezultata'!C297)","v":"0"}]
[null,295,{"$f":"'Evidencija rezultata'!C298&COUNTIF('Evidencija rezultata'!$C$4:C298,'Evidencija rezultata'!C298)","v":"0"}]
[null,296,{"$f":"'Evidencija rezultata'!C299&COUNTIF('Evidencija rezultata'!$C$4:C299,'Evidencija rezultata'!C299)","v":"0"}]
[null,297,{"$f":"'Evidencija rezultata'!C300&COUNTIF('Evidencija rezultata'!$C$4:C300,'Evidencija rezultata'!C300)","v":"0"}]
[null,298,{"$f":"'Evidencija rezultata'!C301&COUNTIF('Evidencija rezultata'!$C$4:C301,'Evidencija rezultata'!C301)","v":"0"}]
[null,299,{"$f":"'Evidencija rezultata'!C302&COUNTIF('Evidencija rezultata'!$C$4:C302,'Evidencija rezultata'!C302)","v":"0"}]
[null,300,{"$f":"'Evidencija rezultata'!C303&COUNTIF('Evidencija rezultata'!$C$4:C303,'Evidencija rezultata'!C303)","v":"0"}]
[null,301,{"$f":"'Evidencija rezultata'!C304&COUNTIF('Evidencija rezultata'!$C$4:C304,'Evidencija rezultata'!C304)","v":"0"}]
[null,302,{"$f":"'Evidencija rezultata'!C305&COUNTIF('Evidencija rezultata'!$C$4:C305,'Evidencija rezultata'!C305)","v":"0"}]
[null,303,{"$f":"'Evidencija rezultata'!C306&COUNTIF('Evidencija rezultata'!$C$4:C306,'Evidencija rezultata'!C306)","v":"0"}]
[null,304,{"$f":"'Evidencija rezultata'!C307&COUNTIF('Evidencija rezultata'!$C$4:C307,'Evidencija rezultata'!C307)","v":"0"}]
[null,305,{"$f":"'Evidencija rezultata'!C308&COUNTIF('Evidencija rezultata'!$C$4:C308,'Evidencija rezultata'!C308)","v":"0"}]
[null,306,{"$f":"'Evidencija rezultata'!C309&COUNTIF('Evidencija rezultata'!$C$4:C309,'Evidencija rezultata'!C309)","v":"0"}]
[null,307,{"$f":"'Evidencija rezultata'!C310&COUNTIF('Evidencija rezultata'!$C$4:C310,'Evidencija rezultata'!C310)","v":"0"}]
[null,308,{"$f":"'Evidencija rezultata'!C311&COUNTIF('Evidencija rezultata'!$C$4:C311,'Evidencija rezultata'!C311)","v":"0"}]
[null,309,{"$f":"'Evidencija rezultata'!C312&COUNTIF('Evidencija rezultata'!$C$4:C312,'Evidencija rezultata'!C312)","v":"0"}]
[null,310,{"$f":"'Evidencija rezultata'!C313&COUNTIF('Evidencija rezultata'!$C$4:C313,'Evidencija rezultata'!C313)","v":"0"}]
[null,311,{"$f":"'Evidencija rezultata'!C314&COUNTIF('Evidencija rezultata'!$C$4:C314,'Evidencija rezultata'!C314)","v":"0"}]
[null,312,{"$f":"'Evidencija rezultata'!C315&COUNTIF('Evidencija rezultata'!$C$4:C315,'Evidencija rezultata'!C315)","v":"0"}]
[null,313,{"$f":"'Evidencija rezultata'!C316&COUNTIF('Evidencija rezultata'!$C$4:C316,'Evidencija rezultata'!C316)","v":"0"}]
[null,314,{"$f":"'Evidencija rezultata'!C317&COUNTIF('Evidencija rezultata'!$C$4:C317,'Evidencija rezultata'!C317)","v":"0"}]
[null,315,{"$f":"'Evidencija rezultata'!C318&COUNTIF('Evidencija rezultata'!$C$4:C318,'Evidencija rezultata'!C318)","v":"0"}]
[null,316,{"$f":"'Evidencija rezultata'!C319&COUNTIF('Evidencija rezultata'!$C$4:C319,'Evidencija rezultata'!C319)","v":"0"}]
[null,317,{"$f":"'Evidencija rezultata'!C320&COUNTIF('Evidencija rezultata'!$C$4:C320,'Evidencija rezultata'!C320)","v":"0"}]
[null,318,{"$f":"'Evidencija rezultata'!C321&COUNTIF('Evidencija rezultata'!$C$4:C321,'Evidencija rezultata'!C321)","v":"0"}]
[null,319,{"$f":"'Evidencija rezultata'!C322&COUNTIF('Evidencija rezultata'!$C$4:C322,'Evidencija rezultata'!C322)","v":"0"}]
[null,320,{"$f":"'Evidencija rezultata'!C323&COUNTIF('Evidencija rezultata'!$C$4:C323,'Evidencija rezultata'!C323)","v":"0"}]
[null,321,{"$f":"'Evidencija rezultata'!C324&COUNTIF('Evidencija rezultata'!$C$4:C324,'Evidencija rezultata'!C324)","v":"0"}]
[null,322,{"$f":"'Evidencija rezultata'!C325&COUNTIF('Evidencija rezultata'!$C$4:C325,'Evidencija rezultata'!C325)","v":"0"}]
[null,323,{"$f":"'Evidencija rezultata'!C326&COUNTIF('Evidencija rezultata'!$C$4:C326,'Evidencija rezultata'!C326)","v":"0"}]
[null,324,{"$f":"'Evidencija rezultata'!C327&COUNTIF('Evidencija rezultata'!$C$4:C327,'Evidencija rezultata'!C327)","v":"0"}]
[null,325,{"$f":"'Evidencija rezultata'!C328&COUNTIF('Evidencija rezultata'!$C$4:C328,'Evidencija rezultata'!C328)","v":"0"}]
[null,326,{"$f":"'Evidencija rezultata'!C329&COUNTIF('Evidencija rezultata'!$C$4:C329,'Evidencija rezultata'!C329)","v":"0"}]
[null,327,{"$f":"'Evidencija rezultata'!C330&COUNTIF('Evidencija rezultata'!$C$4:C330,'Evidencija rezultata'!C330)","v":"0"}]
[null,328,{"$f":"'Evidencija rezultata'!C331&COUNTIF('Evidencija rezultata'!$C$4:C331,'Evidencija rezultata'!C331)","v":"0"}]
[null,329,{"$f":"'Evidencija rezultata'!C332&COUNTIF('Evidencija rezultata'!$C$4:C332,'Evidencija rezultata'!C332)","v":"0"}]
[null,330,{"$f":"'Evidencija rezultata'!C333&COUNTIF('Evidencija rezultata'!$C$4:C333,'Evidencija rezultata'!C333)","v":"0"}]
[null,331,{"$f":"'Evidencija rezultata'!C334&COUNTIF('Evidencija rezultata'!$C$4:C334,'Evidencija rezultata'!C334)","v":"0"}]
[null,332,{"$f":"'Evidencija rezultata'!C335&COUNTIF('Evidencija rezultata'!$C$4:C335,'Evidencija rezultata'!C335)","v":"0"}]
[null,333,{"$f":"'Evidencija rezultata'!C336&COUNTIF('Evidencija rezultata'!$C$4:C336,'Evidencija rezultata'!C336)","v":"0"}]
[null,334,{"$f":"'Evidencija rezultata'!C337&COUNTIF('Evidencija rezultata'!$C$4:C337,'Evidencija rezultata'!C337)","v":"0"}]
[null,335,{"$f":"'Evidencija rezultata'!C338&COUNTIF('Evidencija rezultata'!$C$4:C338,'Evidencija rezultata'!C338)","v":"0"}]
[null,336,{"$f":"'Evidencija rezultata'!C339&COUNTIF('Evidencija rezultata'!$C$4:C339,'Evidencija rezultata'!C339)","v":"0"}]
[null,337,{"$f":"'Evidencija rezultata'!C340&COUNTIF('Evidencija rezultata'!$C$4:C340,'Evidencija rezultata'!C340)","v":"0"}]
[null,338,{"$f":"'Evidencija rezultata'!C341&COUNTIF('Evidencija rezultata'!$C$4:C341,'Evidencija rezultata'!C341)","v":"0"}]
[null,339,{"$f":"'Evidencija rezultata'!C342&COUNTIF('Evidencija rezultata'!$C$4:C342,'Evidencija rezultata'!C342)","v":"0"}]
[null,340,{"$f":"'Evidencija rezultata'!C343&COUNTIF('Evidencija rezultata'!$C$4:C343,'Evidencija rezultata'!C343)","v":"0"}]
[null,341,{"$f":"'Evidencija rezultata'!C344&COUNTIF('Evidencija rezultata'!$C$4:C344,'Evidencija rezultata'!C344)","v":"0"}]
[null,342,{"$f":"'Evidencija rezultata'!C345&COUNTIF('Evidencija rezultata'!$C$4:C345,'Evidencija rezultata'!C345)","v":"0"}]
[null,343,{"$f":"'Evidencija rezultata'!C346&COUNTIF('Evidencija rezultata'!$C$4:C346,'Evidencija rezultata'!C346)","v":"0"}]
[null,344,{"$f":"'Evidencija rezultata'!C347&COUNTIF('Evidencija rezultata'!$C$4:C347,'Evidencija rezultata'!C347)","v":"0"}]
[null,345,{"$f":"'Evidencija rezultata'!C348&COUNTIF('Evidencija rezultata'!$C$4:C348,'Evidencija rezultata'!C348)","v":"0"}]
[null,346,{"$f":"'Evidencija rezultata'!C349&COUNTIF('Evidencija rezultata'!$C$4:C349,'Evidencija rezultata'!C349)","v":"0"}]
[null,347,{"$f":"'Evidencija rezultata'!C350&COUNTIF('Evidencija rezultata'!$C$4:C350,'Evidencija rezultata'!C350)","v":"0"}]
[null,348,{"$f":"'Evidencija rezultata'!C351&COUNTIF('Evidencija rezultata'!$C$4:C351,'Evidencija rezultata'!C351)","v":"0"}]
[null,349,{"$f":"'Evidencija rezultata'!C352&COUNTIF('Evidencija rezultata'!$C$4:C352,'Evidencija rezultata'!C352)","v":"0"}]
[null,350,{"$f":"'Evidencija rezultata'!C353&COUNTIF('Evidencija rezultata'!$C$4:C353,'Evidencija rezultata'!C353)","v":"0"}]
[null,351,{"$f":"'Evidencija rezultata'!C354&COUNTIF('Evidencija rezultata'!$C$4:C354,'Evidencija rezultata'!C354)","v":"0"}]
[null,352,{"$f":"'Evidencija rezultata'!C355&COUNTIF('Evidencija rezultata'!$C$4:C355,'Evidencija rezultata'!C355)","v":"0"}]
[null,353,{"$f":"'Evidencija rezultata'!C356&COUNTIF('Evidencija rezultata'!$C$4:C356,'Evidencija rezultata'!C356)","v":"0"}]
[null,354,{"$f":"'Evidencija rezultata'!C357&COUNTIF('Evidencija rezultata'!$C$4:C357,'Evidencija rezultata'!C357)","v":"0"}]
[null,355,{"$f":"'Evidencija rezultata'!C358&COUNTIF('Evidencija rezultata'!$C$4:C358,'Evidencija rezultata'!C358)","v":"0"}]
[null,356,{"$f":"'Evidencija rezultata'!C359&COUNTIF('Evidencija rezultata'!$C$4:C359,'Evidencija rezultata'!C359)","v":"0"}]
[null,357,{"$f":"'Evidencija rezultata'!C360&COUNTIF('Evidencija rezultata'!$C$4:C360,'Evidencija rezultata'!C360)","v":"0"}]
[null,358,{"$f":"'Evidencija rezultata'!C361&COUNTIF('Evidencija rezultata'!$C$4:C361,'Evidencija rezultata'!C361)","v":"0"}]
[null,359,{"$f":"'Evidencija rezultata'!C362&COUNTIF('Evidencija rezultata'!$C$4:C362,'Evidencija rezultata'!C362)","v":"0"}]
[null,360,{"$f":"'Evidencija rezultata'!C363&COUNTIF('Evidencija rezultata'!$C$4:C363,'Evidencija rezultata'!C363)","v":"0"}]
[null,361,{"$f":"'Evidencija rezultata'!C364&COUNTIF('Evidencija rezultata'!$C$4:C364,'Evidencija rezultata'!C364)","v":"0"}]
[null,362,{"$f":"'Evidencija rezultata'!C365&COUNTIF('Evidencija rezultata'!$C$4:C365,'Evidencija rezultata'!C365)","v":"0"}]
[null,363,{"$f":"'Evidencija rezultata'!C366&COUNTIF('Evidencija rezultata'!$C$4:C366,'Evidencija rezultata'!C366)","v":"0"}]
[null,364,{"$f":"'Evidencija rezultata'!C367&COUNTIF('Evidencija rezultata'!$C$4:C367,'Evidencija rezultata'!C367)","v":"0"}]
[null,365,{"$f":"'Evidencija rezultata'!C368&COUNTIF('Evidencija rezultata'!$C$4:C368,'Evidencija rezultata'!C368)","v":"0"}]
[null,366,{"$f":"'Evidencija rezultata'!C369&COUNTIF('Evidencija rezultata'!$C$4:C369,'Evidencija rezultata'!C369)","v":"0"}]
[null,367,{"$f":"'Evidencija rezultata'!C370&COUNTIF('Evidencija rezultata'!$C$4:C370,'Evidencija rezultata'!C370)","v":"0"}]
[null,368,{"$f":"'Evidencija rezultata'!C371&COUNTIF('Evidencija rezultata'!$C$4:C371,'Evidencija rezultata'!C371)","v":"0"}]
[null,369,{"$f":"'Evidencija rezultata'!C372&COUNTIF('Evidencija rezultata'!$C$4:C372,'Evidencija rezultata'!C372)","v":"0"}]
[null,370,{"$f":"'Evidencija rezultata'!C373&COUNTIF('Evidencija rezultata'!$C$4:C373,'Evidencija rezultata'!C373)","v":"0"}]
[null,371,{"$f":"'Evidencija rezultata'!C374&COUNTIF('Evidencija rezultata'!$C$4:C374,'Evidencija rezultata'!C374)","v":"0"}]
[null,372,{"$f":"'Evidencija rezultata'!C375&COUNTIF('Evidencija rezultata'!$C$4:C375,'Evidencija rezultata'!C375)","v":"0"}]
[null,373,{"$f":"'Evidencija rezultata'!C376&COUNTIF('Evidencija rezultata'!$C$4:C376,'Evidencija rezultata'!C376)","v":"0"}]
[null,374,{"$f":"'Evidencija rezultata'!C377&COUNTIF('Evidencija rezultata'!$C$4:C377,'Evidencija rezultata'!C377)","v":"0"}]
[null,375,{"$f":"'Evidencija rezultata'!C378&COUNTIF('Evidencija rezultata'!$C$4:C378,'Evidencija rezultata'!C378)","v":"0"}]
[null,376,{"$f":"'Evidencija rezultata'!C379&COUNTIF('Evidencija rezultata'!$C$4:C379,'Evidencija rezultata'!C379)","v":"0"}]
[null,377,{"$f":"'Evidencija rezultata'!C380&COUNTIF('Evidencija rezultata'!$C$4:C380,'Evidencija rezultata'!C380)","v":"0"}]
[null,378,{"$f":"'Evidencija rezultata'!C381&COUNTIF('Evidencija rezultata'!$C$4:C381,'Evidencija rezultata'!C381)","v":"0"}]
[null,379,{"$f":"'Evidencija rezultata'!C382&COUNTIF('Evidencija rezultata'!$C$4:C382,'Evidencija rezultata'!C382)","v":"0"}]
[null,380,{"$f":"'Evidencija rezultata'!C383&COUNTIF('Evidencija rezultata'!$C$4:C383,'Evidencija rezultata'!C383)","v":"0"}]
[null,381,{"$f":"'Evidencija rezultata'!C384&COUNTIF('Evidencija rezultata'!$C$4:C384,'Evidencija rezultata'!C384)","v":"0"}]
[null,382,{"$f":"'Evidencija rezultata'!C385&COUNTIF('Evidencija rezultata'!$C$4:C385,'Evidencija rezultata'!C385)","v":"0"}]
[null,383,{"$f":"'Evidencija rezultata'!C386&COUNTIF('Evidencija rezultata'!$C$4:C386,'Evidencija rezultata'!C386)","v":"0"}]
[null,384,{"$f":"'Evidencija rezultata'!C387&COUNTIF('Evidencija rezultata'!$C$4:C387,'Evidencija rezultata'!C387)","v":"0"}]
[null,385,{"$f":"'Evidencija rezultata'!C388&COUNTIF('Evidencija rezultata'!$C$4:C388,'Evidencija rezultata'!C388)","v":"0"}]
[null,386,{"$f":"'Evidencija rezultata'!C389&COUNTIF('Evidencija rezultata'!$C$4:C389,'Evidencija rezultata'!C389)","v":"0"}]
[null,387,{"$f":"'Evidencija rezultata'!C390&COUNTIF('Evidencija rezultata'!$C$4:C390,'Evidencija rezultata'!C390)","v":"0"}]
[null,388,{"$f":"'Evidencija rezultata'!C391&COUNTIF('Evidencija rezultata'!$C$4:C391,'Evidencija rezultata'!C391)","v":"0"}]
[null,389,{"$f":"'Evidencija rezultata'!C392&COUNTIF('Evidencija rezultata'!$C$4:C392,'Evidencija rezultata'!C392)","v":"0"}]
[null,390,{"$f":"'Evidencija rezultata'!C393&COUNTIF('Evidencija rezultata'!$C$4:C393,'Evidencija rezultata'!C393)","v":"0"}]
[null,391,{"$f":"'Evidencija rezultata'!C394&COUNTIF('Evidencija rezultata'!$C$4:C394,'Evidencija rezultata'!C394)","v":"0"}]
[null,392,{"$f":"'Evidencija rezultata'!C395&COUNTIF('Evidencija rezultata'!$C$4:C395,'Evidencija rezultata'!C395)","v":"0"}]
[null,393,{"$f":"'Evidencija rezultata'!C396&COUNTIF('Evidencija rezultata'!$C$4:C396,'Evidencija rezultata'!C396)","v":"0"}]
[null,394,{"$f":"'Evidencija rezultata'!C397&COUNTIF('Evidencija rezultata'!$C$4:C397,'Evidencija rezultata'!C397)","v":"0"}]
[null,395,{"$f":"'Evidencija rezultata'!C398&COUNTIF('Evidencija rezultata'!$C$4:C398,'Evidencija rezultata'!C398)","v":"0"}]
[null,396,{"$f":"'Evidencija rezultata'!C399&COUNTIF('Evidencija rezultata'!$C$4:C399,'Evidencija rezultata'!C399)","v":"0"}]
[null,397,{"$f":"'Evidencija rezultata'!C400&COUNTIF('Evidencija rezultata'!$C$4:C400,'Evidencija rezultata'!C400)","v":"0"}]
[null,398,{"$f":"'Evidencija rezultata'!C401&COUNTIF('Evidencija rezultata'!$C$4:C401,'Evidencija rezultata'!C401)","v":"0"}]
[null,399,{"$f":"'Evidencija rezultata'!C402&COUNTIF('Evidencija rezultata'!$C$4:C402,'Evidencija rezultata'!C402)","v":"0"}]
[null,400,{"$f":"'Evidencija rezultata'!C403&COUNTIF('Evidencija rezultata'!$C$4:C403,'Evidencija rezultata'!C403)","v":"0"}]
[null,401,{"$f":"'Evidencija rezultata'!C404&COUNTIF('Evidencija rezultata'!$C$4:C404,'Evidencija rezultata'!C404)","v":"0"}]
[null,402,{"$f":"'Evidencija rezultata'!C405&COUNTIF('Evidencija rezultata'!$C$4:C405,'Evidencija rezultata'!C405)","v":"0"}]
[null,403,{"$f":"'Evidencija rezultata'!C406&COUNTIF('Evidencija rezultata'!$C$4:C406,'Evidencija rezultata'!C406)","v":"0"}]
[null,404,{"$f":"'Evidencija rezultata'!C407&COUNTIF('Evidencija rezultata'!$C$4:C407,'Evidencija rezultata'!C407)","v":"0"}]
[null,405,{"$f":"'Evidencija rezultata'!C408&COUNTIF('Evidencija rezultata'!$C$4:C408,'Evidencija rezultata'!C408)","v":"0"}]
[null,406,{"$f":"'Evidencija rezultata'!C409&COUNTIF('Evidencija rezultata'!$C$4:C409,'Evidencija rezultata'!C409)","v":"0"}]
[null,407,{"$f":"'Evidencija rezultata'!C410&COUNTIF('Evidencija rezultata'!$C$4:C410,'Evidencija rezultata'!C410)","v":"0"}]
[null,408,{"$f":"'Evidencija rezultata'!C411&COUNTIF('Evidencija rezultata'!$C$4:C411,'Evidencija rezultata'!C411)","v":"0"}]
[null,409,{"$f":"'Evidencija rezultata'!C412&COUNTIF('Evidencija rezultata'!$C$4:C412,'Evidencija rezultata'!C412)","v":"0"}]
[null,410,{"$f":"'Evidencija rezultata'!C413&COUNTIF('Evidencija rezultata'!$C$4:C413,'Evidencija rezultata'!C413)","v":"0"}]
[null,411,{"$f":"'Evidencija rezultata'!C414&COUNTIF('Evidencija rezultata'!$C$4:C414,'Evidencija rezultata'!C414)","v":"0"}]
[null,412,{"$f":"'Evidencija rezultata'!C415&COUNTIF('Evidencija rezultata'!$C$4:C415,'Evidencija rezultata'!C415)","v":"0"}]
[null,413,{"$f":"'Evidencija rezultata'!C416&COUNTIF('Evidencija rezultata'!$C$4:C416,'Evidencija rezultata'!C416)","v":"0"}]
[null,414,{"$f":"'Evidencija rezultata'!C417&COUNTIF('Evidencija rezultata'!$C$4:C417,'Evidencija rezultata'!C417)","v":"0"}]
[null,415,{"$f":"'Evidencija rezultata'!C418&COUNTIF('Evidencija rezultata'!$C$4:C418,'Evidencija rezultata'!C418)","v":"0"}]
[null,416,{"$f":"'Evidencija rezultata'!C419&COUNTIF('Evidencija rezultata'!$C$4:C419,'Evidencija rezultata'!C419)","v":"0"}]
[null,417,{"$f":"'Evidencija rezultata'!C420&COUNTIF('Evidencija rezultata'!$C$4:C420,'Evidencija rezultata'!C420)","v":"0"}]
[null,418,{"$f":"'Evidencija rezultata'!C421&COUNTIF('Evidencija rezultata'!$C$4:C421,'Evidencija rezultata'!C421)","v":"0"}]
[null,419,{"$f":"'Evidencija rezultata'!C422&COUNTIF('Evidencija rezultata'!$C$4:C422,'Evidencija rezultata'!C422)","v":"0"}]
[null,420,{"$f":"'Evidencija rezultata'!C423&COUNTIF('Evidencija rezultata'!$C$4:C423,'Evidencija rezultata'!C423)","v":"0"}]
[null,421,{"$f":"'Evidencija rezultata'!C424&COUNTIF('Evidencija rezultata'!$C$4:C424,'Evidencija rezultata'!C424)","v":"0"}]
[null,422,{"$f":"'Evidencija rezultata'!C425&COUNTIF('Evidencija rezultata'!$C$4:C425,'Evidencija rezultata'!C425)","v":"0"}]
[null,423,{"$f":"'Evidencija rezultata'!C426&COUNTIF('Evidencija rezultata'!$C$4:C426,'Evidencija rezultata'!C426)","v":"0"}]
[null,424,{"$f":"'Evidencija rezultata'!C427&COUNTIF('Evidencija rezultata'!$C$4:C427,'Evidencija rezultata'!C427)","v":"0"}]
[null,425,{"$f":"'Evidencija rezultata'!C428&COUNTIF('Evidencija rezultata'!$C$4:C428,'Evidencija rezultata'!C428)","v":"0"}]
[null,426,{"$f":"'Evidencija rezultata'!C429&COUNTIF('Evidencija rezultata'!$C$4:C429,'Evidencija rezultata'!C429)","v":"0"}]
[null,427,{"$f":"'Evidencija rezultata'!C430&COUNTIF('Evidencija rezultata'!$C$4:C430,'Evidencija rezultata'!C430)","v":"0"}]
[null,428,{"$f":"'Evidencija rezultata'!C431&COUNTIF('Evidencija rezultata'!$C$4:C431,'Evidencija rezultata'!C431)","v":"0"}]
[null,429,{"$f":"'Evidencija rezultata'!C432&COUNTIF('Evidencija rezultata'!$C$4:C432,'Evidencija rezultata'!C432)","v":"0"}]
[null,430,{"$f":"'Evidencija rezultata'!C433&COUNTIF('Evidencija rezultata'!$C$4:C433,'Evidencija rezultata'!C433)","v":"0"}]
[null,431,{"$f":"'Evidencija rezultata'!C434&COUNTIF('Evidencija rezultata'!$C$4:C434,'Evidencija rezultata'!C434)","v":"0"}]
[null,432,{"$f":"'Evidencija rezultata'!C435&COUNTIF('Evidencija rezultata'!$C$4:C435,'Evidencija rezultata'!C435)","v":"0"}]
[null,433,{"$f":"'Evidencija rezultata'!C436&COUNTIF('Evidencija rezultata'!$C$4:C436,'Evidencija rezultata'!C436)","v":"0"}]
[null,434,{"$f":"'Evidencija rezultata'!C437&COUNTIF('Evidencija rezultata'!$C$4:C437,'Evidencija rezultata'!C437)","v":"0"}]
[null,435,{"$f":"'Evidencija rezultata'!C438&COUNTIF('Evidencija rezultata'!$C$4:C438,'Evidencija rezultata'!C438)","v":"0"}]
[null,436,{"$f":"'Evidencija rezultata'!C439&COUNTIF('Evidencija rezultata'!$C$4:C439,'Evidencija rezultata'!C439)","v":"0"}]
[null,437,{"$f":"'Evidencija rezultata'!C440&COUNTIF('Evidencija rezultata'!$C$4:C440,'Evidencija rezultata'!C440)","v":"0"}]
[null,438,{"$f":"'Evidencija rezultata'!C441&COUNTIF('Evidencija rezultata'!$C$4:C441,'Evidencija rezultata'!C441)","v":"0"}]
[null,439,{"$f":"'Evidencija rezultata'!C442&COUNTIF('Evidencija rezultata'!$C$4:C442,'Evidencija rezultata'!C442)","v":"0"}]
[null,440,{"$f":"'Evidencija rezultata'!C443&COUNTIF('Evidencija rezultata'!$C$4:C443,'Evidencija rezultata'!C443)","v":"0"}]
[null,441,{"$f":"'Evidencija rezultata'!C444&COUNTIF('Evidencija rezultata'!$C$4:C444,'Evidencija rezultata'!C444)","v":"0"}]
[null,442,{"$f":"'Evidencija rezultata'!C445&COUNTIF('Evidencija rezultata'!$C$4:C445,'Evidencija rezultata'!C445)","v":"0"}]
[null,443,{"$f":"'Evidencija rezultata'!C446&COUNTIF('Evidencija rezultata'!$C$4:C446,'Evidencija rezultata'!C446)","v":"0"}]
[null,444,{"$f":"'Evidencija rezultata'!C447&COUNTIF('Evidencija rezultata'!$C$4:C447,'Evidencija rezultata'!C447)","v":"0"}]
[null,445,{"$f":"'Evidencija rezultata'!C448&COUNTIF('Evidencija rezultata'!$C$4:C448,'Evidencija rezultata'!C448)","v":"0"}]
[null,446,{"$f":"'Evidencija rezultata'!C449&COUNTIF('Evidencija rezultata'!$C$4:C449,'Evidencija rezultata'!C449)","v":"0"}]
[null,447,{"$f":"'Evidencija rezultata'!C450&COUNTIF('Evidencija rezultata'!$C$4:C450,'Evidencija rezultata'!C450)","v":"0"}]
[null,448,{"$f":"'Evidencija rezultata'!C451&COUNTIF('Evidencija rezultata'!$C$4:C451,'Evidencija rezultata'!C451)","v":"0"}]
[null,449,{"$f":"'Evidencija rezultata'!C452&COUNTIF('Evidencija rezultata'!$C$4:C452,'Evidencija rezultata'!C452)","v":"0"}]
[null,450,{"$f":"'Evidencija rezultata'!C453&COUNTIF('Evidencija rezultata'!$C$4:C453,'Evidencija rezultata'!C453)","v":"0"}]
[null,451,{"$f":"'Evidencija rezultata'!C454&COUNTIF('Evidencija rezultata'!$C$4:C454,'Evidencija rezultata'!C454)","v":"0"}]
[null,452,{"$f":"'Evidencija rezultata'!C455&COUNTIF('Evidencija rezultata'!$C$4:C455,'Evidencija rezultata'!C455)","v":"0"}]
[null,453,{"$f":"'Evidencija rezultata'!C456&COUNTIF('Evidencija rezultata'!$C$4:C456,'Evidencija rezultata'!C456)","v":"0"}]
[null,454,{"$f":"'Evidencija rezultata'!C457&COUNTIF('Evidencija rezultata'!$C$4:C457,'Evidencija rezultata'!C457)","v":"0"}]
[null,455,{"$f":"'Evidencija rezultata'!C458&COUNTIF('Evidencija rezultata'!$C$4:C458,'Evidencija rezultata'!C458)","v":"0"}]
[null,456,{"$f":"'Evidencija rezultata'!C459&COUNTIF('Evidencija rezultata'!$C$4:C459,'Evidencija rezultata'!C459)","v":"0"}]
[null,457,{"$f":"'Evidencija rezultata'!C460&COUNTIF('Evidencija rezultata'!$C$4:C460,'Evidencija rezultata'!C460)","v":"0"}]
[null,458,{"$f":"'Evidencija rezultata'!C461&COUNTIF('Evidencija rezultata'!$C$4:C461,'Evidencija rezultata'!C461)","v":"0"}]
[null,459,{"$f":"'Evidencija rezultata'!C462&COUNTIF('Evidencija rezultata'!$C$4:C462,'Evidencija rezultata'!C462)","v":"0"}]
[null,460,{"$f":"'Evidencija rezultata'!C463&COUNTIF('Evidencija rezultata'!$C$4:C463,'Evidencija rezultata'!C463)","v":"0"}]
[null,461,{"$f":"'Evidencija rezultata'!C464&COUNTIF('Evidencija rezultata'!$C$4:C464,'Evidencija rezultata'!C464)","v":"0"}]
[null,462,{"$f":"'Evidencija rezultata'!C465&COUNTIF('Evidencija rezultata'!$C$4:C465,'Evidencija rezultata'!C465)","v":"0"}]
[null,463,{"$f":"'Evidencija rezultata'!C466&COUNTIF('Evidencija rezultata'!$C$4:C466,'Evidencija rezultata'!C466)","v":"0"}]
[null,464,{"$f":"'Evidencija rezultata'!C467&COUNTIF('Evidencija rezultata'!$C$4:C467,'Evidencija rezultata'!C467)","v":"0"}]
[null,465,{"$f":"'Evidencija rezultata'!C468&COUNTIF('Evidencija rezultata'!$C$4:C468,'Evidencija rezultata'!C468)","v":"0"}]
[null,466,{"$f":"'Evidencija rezultata'!C469&COUNTIF('Evidencija rezultata'!$C$4:C469,'Evidencija rezultata'!C469)","v":"0"}]
[null,467,{"$f":"'Evidencija rezultata'!C470&COUNTIF('Evidencija rezultata'!$C$4:C470,'Evidencija rezultata'!C470)","v":"0"}]
[null,468,{"$f":"'Evidencija rezultata'!C471&COUNTIF('Evidencija rezultata'!$C$4:C471,'Evidencija rezultata'!C471)","v":"0"}]
[null,469,{"$f":"'Evidencija rezultata'!C472&COUNTIF('Evidencija rezultata'!$C$4:C472,'Evidencija rezultata'!C472)","v":"0"}]
[null,470,{"$f":"'Evidencija rezultata'!C473&COUNTIF('Evidencija rezultata'!$C$4:C473,'Evidencija rezultata'!C473)","v":"0"}]
[null,471,{"$f":"'Evidencija rezultata'!C474&COUNTIF('Evidencija rezultata'!$C$4:C474,'Evidencija rezultata'!C474)","v":"0"}]
[null,472,{"$f":"'Evidencija rezultata'!C475&COUNTIF('Evidencija rezultata'!$C$4:C475,'Evidencija rezultata'!C475)","v":"0"}]
[null,473,{"$f":"'Evidencija rezultata'!C476&COUNTIF('Evidencija rezultata'!$C$4:C476,'Evidencija rezultata'!C476)","v":"0"}]
[null,474,{"$f":"'Evidencija rezultata'!C477&COUNTIF('Evidencija rezultata'!$C$4:C477,'Evidencija rezultata'!C477)","v":"0"}]
[null,475,{"$f":"'Evidencija rezultata'!C478&COUNTIF('Evidencija rezultata'!$C$4:C478,'Evidencija rezultata'!C478)","v":"0"}]
[null,476,{"$f":"'Evidencija rezultata'!C479&COUNTIF('Evidencija rezultata'!$C$4:C479,'Evidencija rezultata'!C479)","v":"0"}]
[null,477,{"$f":"'Evidencija rezultata'!C480&COUNTIF('Evidencija rezultata'!$C$4:C480,'Evidencija rezultata'!C480)","v":"0"}]
[null,478,{"$f":"'Evidencija rezultata'!C481&COUNTIF('Evidencija rezultata'!$C$4:C481,'Evidencija rezultata'!C481)","v":"0"}]
[null,479,{"$f":"'Evidencija rezultata'!C482&COUNTIF('Evidencija rezultata'!$C$4:C482,'Evidencija rezultata'!C482)","v":"0"}]
[null,480,{"$f":"'Evidencija rezultata'!C483&COUNTIF('Evidencija rezultata'!$C$4:C483,'Evidencija rezultata'!C483)","v":"0"}]
[null,481,{"$f":"'Evidencija rezultata'!C484&COUNTIF('Evidencija rezultata'!$C$4:C484,'Evidencija rezultata'!C484)","v":"0"}]
[null,482,{"$f":"'Evidencija rezultata'!C485&COUNTIF('Evidencija rezultata'!$C$4:C485,'Evidencija rezultata'!C485)","v":"0"}]
[null,483,{"$f":"'Evidencija rezultata'!C486&COUNTIF('Evidencija rezultata'!$C$4:C486,'Evidencija rezultata'!C486)","v":"0"}]
[null,484,{"$f":"'Evidencija rezultata'!C487&COUNTIF('Evidencija rezultata'!$C$4:C487,'Evidencija rezultata'!C487)","v":"0"}]
[null,485,{"$f":"'Evidencija rezultata'!C488&COUNTIF('Evidencija rezultata'!$C$4:C488,'Evidencija rezultata'!C488)","v":"0"}]
[null,486,{"$f":"'Evidencija rezultata'!C489&COUNTIF('Evidencija rezultata'!$C$4:C489,'Evidencija rezultata'!C489)","v":"0"}]
[null,487,{"$f":"'Evidencija rezultata'!C490&COUNTIF('Evidencija rezultata'!$C$4:C490,'Evidencija rezultata'!C490)","v":"0"}]
[null,488,{"$f":"'Evidencija rezultata'!C491&COUNTIF('Evidencija rezultata'!$C$4:C491,'Evidencija rezultata'!C491)","v":"0"}]
[null,489,{"$f":"'Evidencija rezultata'!C492&COUNTIF('Evidencija rezultata'!$C$4:C492,'Evidencija rezultata'!C492)","v":"0"}]
[null,490,{"$f":"'Evidencija rezultata'!C493&COUNTIF('Evidencija rezultata'!$C$4:C493,'Evidencija rezultata'!C493)","v":"0"}]
[null,491,{"$f":"'Evidencija rezultata'!C494&COUNTIF('Evidencija rezultata'!$C$4:C494,'Evidencija rezultata'!C494)","v":"0"}]
[null,492,{"$f":"'Evidencija rezultata'!C495&COUNTIF('Evidencija rezultata'!$C$4:C495,'Evidencija rezultata'!C495)","v":"0"}]
[null,493,{"$f":"'Evidencija rezultata'!C496&COUNTIF('Evidencija rezultata'!$C$4:C496,'Evidencija rezultata'!C496)","v":"0"}]
[null,494,{"$f":"'Evidencija rezultata'!C497&COUNTIF('Evidencija rezultata'!$C$4:C497,'Evidencija rezultata'!C497)","v":"0"}]
[null,495,{"$f":"'Evidencija rezultata'!C498&COUNTIF('Evidencija rezultata'!$C$4:C498,'Evidencija rezultata'!C498)","v":"0"}]
[null,496,{"$f":"'Evidencija rezultata'!C499&COUNTIF('Evidencija rezultata'!$C$4:C499,'Evidencija rezultata'!C499)","v":"0"}]
[null,497,{"$f":"'Evidencija rezultata'!C500&COUNTIF('Evidencija rezultata'!$C$4:C500,'Evidencija rezultata'!C500)","v":"0"}]
[null,498,{"$f":"'Evidencija rezultata'!C501&COUNTIF('Evidencija rezultata'!$C$4:C501,'Evidencija rezultata'!C501)","v":"0"}]
[null,499,{"$f":"'Evidencija rezultata'!C502&COUNTIF('Evidencija rezultata'!$C$4:C502,'Evidencija rezultata'!C502)","v":"0"}]
[null,500,{"$f":"'Evidencija rezultata'!C503&COUNTIF('Evidencija rezultata'!$C$4:C503,'Evidencija rezultata'!C503)","v":"0"}]
[null,501,{"$f":"'Evidencija rezultata'!C504&COUNTIF('Evidencija rezultata'!$C$4:C504,'Evidencija rezultata'!C504)","v":"0"}]
[null,502,{"$f":"'Evidencija rezultata'!C505&COUNTIF('Evidencija rezultata'!$C$4:C505,'Evidencija rezultata'!C505)","v":"0"}]
[null,503,{"$f":"'Evidencija rezultata'!C506&COUNTIF('Evidencija rezultata'!$C$4:C506,'Evidencija rezultata'!C506)","v":"0"}]
[null,504,{"$f":"'Evidencija rezultata'!C507&COUNTIF('Evidencija rezultata'!$C$4:C507,'Evidencija rezultata'!C507)","v":"0"}]
[null,505,{"$f":"'Evidencija rezultata'!C508&COUNTIF('Evidencija rezultata'!$C$4:C508,'Evidencija rezultata'!C508)","v":"0"}]
[null,506,{"$f":"'Evidencija rezultata'!C509&COUNTIF('Evidencija rezultata'!$C$4:C509,'Evidencija rezultata'!C509)","v":"0"}]
[null,507,{"$f":"'Evidencija rezultata'!C510&COUNTIF('Evidencija rezultata'!$C$4:C510,'Evidencija rezultata'!C510)","v":"0"}]
[null,508,{"$f":"'Evidencija rezultata'!C511&COUNTIF('Evidencija rezultata'!$C$4:C511,'Evidencija rezultata'!C511)","v":"0"}]
[null,509,{"$f":"'Evidencija rezultata'!C512&COUNTIF('Evidencija rezultata'!$C$4:C512,'Evidencija rezultata'!C512)","v":"0"}]
[null,510,{"$f":"'Evidencija rezultata'!C513&COUNTIF('Evidencija rezultata'!$C$4:C513,'Evidencija rezultata'!C513)","v":"0"}]
[null,511,{"$f":"'Evidencija rezultata'!C514&COUNTIF('Evidencija rezultata'!$C$4:C514,'Evidencija rezultata'!C514)","v":"0"}]
[null,512,{"$f":"'Evidencija rezultata'!C515&COUNTIF('Evidencija rezultata'!$C$4:C515,'Evidencija rezultata'!C515)","v":"0"}]
[null,513,{"$f":"'Evidencija rezultata'!C516&COUNTIF('Evidencija rezultata'!$C$4:C516,'Evidencija rezultata'!C516)","v":"0"}]
[null,514,{"$f":"'Evidencija rezultata'!C517&COUNTIF('Evidencija rezultata'!$C$4:C517,'Evidencija rezultata'!C517)","v":"0"}]
[null,515,{"$f":"'Evidencija rezultata'!C518&COUNTIF('Evidencija rezultata'!$C$4:C518,'Evidencija rezultata'!C518)","v":"0"}]
[null,516,{"$f":"'Evidencija rezultata'!C519&COUNTIF('Evidencija rezultata'!$C$4:C519,'Evidencija rezultata'!C519)","v":"0"}]
[null,517,{"$f":"'Evidencija rezultata'!C520&COUNTIF('Evidencija rezultata'!$C$4:C520,'Evidencija rezultata'!C520)","v":"0"}]
[null,518,{"$f":"'Evidencija rezultata'!C521&COUNTIF('Evidencija rezultata'!$C$4:C521,'Evidencija rezultata'!C521)","v":"0"}]
[null,519,{"$f":"'Evidencija rezultata'!C522&COUNTIF('Evidencija rezultata'!$C$4:C522,'Evidencija rezultata'!C522)","v":"0"}]
[null,520,{"$f":"'Evidencija rezultata'!C523&COUNTIF('Evidencija rezultata'!$C$4:C523,'Evidencija rezultata'!C523)","v":"0"}]
[null,521,{"$f":"'Evidencija rezultata'!C524&COUNTIF('Evidencija rezultata'!$C$4:C524,'Evidencija rezultata'!C524)","v":"0"}]
[null,522,{"$f":"'Evidencija rezultata'!C525&COUNTIF('Evidencija rezultata'!$C$4:C525,'Evidencija rezultata'!C525)","v":"0"}]
[null,523,{"$f":"'Evidencija rezultata'!C526&COUNTIF('Evidencija rezultata'!$C$4:C526,'Evidencija rezultata'!C526)","v":"0"}]
[null,524,{"$f":"'Evidencija rezultata'!C527&COUNTIF('Evidencija rezultata'!$C$4:C527,'Evidencija rezultata'!C527)","v":"0"}]
[null,525,{"$f":"'Evidencija rezultata'!C528&COUNTIF('Evidencija rezultata'!$C$4:C528,'Evidencija rezultata'!C528)","v":"0"}]
[null,526,{"$f":"'Evidencija rezultata'!C529&COUNTIF('Evidencija rezultata'!$C$4:C529,'Evidencija rezultata'!C529)","v":"0"}]
[null,527,{"$f":"'Evidencija rezultata'!C530&COUNTIF('Evidencija rezultata'!$C$4:C530,'Evidencija rezultata'!C530)","v":"0"}]
[null,528,{"$f":"'Evidencija rezultata'!C531&COUNTIF('Evidencija rezultata'!$C$4:C531,'Evidencija rezultata'!C531)","v":"0"}]
[null,529,{"$f":"'Evidencija rezultata'!C532&COUNTIF('Evidencija rezultata'!$C$4:C532,'Evidencija rezultata'!C532)","v":"0"}]
[null,530,{"$f":"'Evidencija rezultata'!C533&COUNTIF('Evidencija rezultata'!$C$4:C533,'Evidencija rezultata'!C533)","v":"0"}]
[null,531,{"$f":"'Evidencija rezultata'!C534&COUNTIF('Evidencija rezultata'!$C$4:C534,'Evidencija rezultata'!C534)","v":"0"}]
[null,532,{"$f":"'Evidencija rezultata'!C535&COUNTIF('Evidencija rezultata'!$C$4:C535,'Evidencija rezultata'!C535)","v":"0"}]
[null,533,{"$f":"'Evidencija rezultata'!C536&COUNTIF('Evidencija rezultata'!$C$4:C536,'Evidencija rezultata'!C536)","v":"0"}]
[null,534,{"$f":"'Evidencija rezultata'!C537&COUNTIF('Evidencija rezultata'!$C$4:C537,'Evidencija rezultata'!C537)","v":"0"}]
[null,535,{"$f":"'Evidencija rezultata'!C538&COUNTIF('Evidencija rezultata'!$C$4:C538,'Evidencija rezultata'!C538)","v":"0"}]
[null,536,{"$f":"'Evidencija rezultata'!C539&COUNTIF('Evidencija rezultata'!$C$4:C539,'Evidencija rezultata'!C539)","v":"0"}]
[null,537,{"$f":"'Evidencija rezultata'!C540&COUNTIF('Evidencija rezultata'!$C$4:C540,'Evidencija rezultata'!C540)","v":"0"}]
[null,538,{"$f":"'Evidencija rezultata'!C541&COUNTIF('Evidencija rezultata'!$C$4:C541,'Evidencija rezultata'!C541)","v":"0"}]
[null,539,{"$f":"'Evidencija rezultata'!C542&COUNTIF('Evidencija rezultata'!$C$4:C542,'Evidencija rezultata'!C542)","v":"0"}]
[null,540,{"$f":"'Evidencija rezultata'!C543&COUNTIF('Evidencija rezultata'!$C$4:C543,'Evidencija rezultata'!C543)","v":"0"}]
[null,541,{"$f":"'Evidencija rezultata'!C544&COUNTIF('Evidencija rezultata'!$C$4:C544,'Evidencija rezultata'!C544)","v":"0"}]
[null,542,{"$f":"'Evidencija rezultata'!C545&COUNTIF('Evidencija rezultata'!$C$4:C545,'Evidencija rezultata'!C545)","v":"0"}]
[null,543,{"$f":"'Evidencija rezultata'!C546&COUNTIF('Evidencija rezultata'!$C$4:C546,'Evidencija rezultata'!C546)","v":"0"}]
[null,544,{"$f":"'Evidencija rezultata'!C547&COUNTIF('Evidencija rezultata'!$C$4:C547,'Evidencija rezultata'!C547)","v":"0"}]
[null,545,{"$f":"'Evidencija rezultata'!C548&COUNTIF('Evidencija rezultata'!$C$4:C548,'Evidencija rezultata'!C548)","v":"0"}]
[null,546,{"$f":"'Evidencija rezultata'!C549&COUNTIF('Evidencija rezultata'!$C$4:C549,'Evidencija rezultata'!C549)","v":"0"}]
[null,547,{"$f":"'Evidencija rezultata'!C550&COUNTIF('Evidencija rezultata'!$C$4:C550,'Evidencija rezultata'!C550)","v":"0"}]
[null,548,{"$f":"'Evidencija rezultata'!C551&COUNTIF('Evidencija rezultata'!$C$4:C551,'Evidencija rezultata'!C551)","v":"0"}]
[null,549,{"$f":"'Evidencija rezultata'!C552&COUNTIF('Evidencija rezultata'!$C$4:C552,'Evidencija rezultata'!C552)","v":"0"}]
[null,550,{"$f":"'Evidencija rezultata'!C553&COUNTIF('Evidencija rezultata'!$C$4:C553,'Evidencija rezultata'!C553)","v":"0"}]
[null,551,{"$f":"'Evidencija rezultata'!C554&COUNTIF('Evidencija rezultata'!$C$4:C554,'Evidencija rezultata'!C554)","v":"0"}]
[null,552,{"$f":"'Evidencija rezultata'!C555&COUNTIF('Evidencija rezultata'!$C$4:C555,'Evidencija rezultata'!C555)","v":"0"}]
[null,553,{"$f":"'Evidencija rezultata'!C556&COUNTIF('Evidencija rezultata'!$C$4:C556,'Evidencija rezultata'!C556)","v":"0"}]
[null,554,{"$f":"'Evidencija rezultata'!C557&COUNTIF('Evidencija rezultata'!$C$4:C557,'Evidencija rezultata'!C557)","v":"0"}]
[null,555,{"$f":"'Evidencija rezultata'!C558&COUNTIF('Evidencija rezultata'!$C$4:C558,'Evidencija rezultata'!C558)","v":"0"}]
[null,556,{"$f":"'Evidencija rezultata'!C559&COUNTIF('Evidencija rezultata'!$C$4:C559,'Evidencija rezultata'!C559)","v":"0"}]
[null,557,{"$f":"'Evidencija rezultata'!C560&COUNTIF('Evidencija rezultata'!$C$4:C560,'Evidencija rezultata'!C560)","v":"0"}]
[null,558,{"$f":"'Evidencija rezultata'!C561&COUNTIF('Evidencija rezultata'!$C$4:C561,'Evidencija rezultata'!C561)","v":"0"}]
[null,559,{"$f":"'Evidencija rezultata'!C562&COUNTIF('Evidencija rezultata'!$C$4:C562,'Evidencija rezultata'!C562)","v":"0"}]
[null,560,{"$f":"'Evidencija rezultata'!C563&COUNTIF('Evidencija rezultata'!$C$4:C563,'Evidencija rezultata'!C563)","v":"0"}]
[null,561,{"$f":"'Evidencija rezultata'!C564&COUNTIF('Evidencija rezultata'!$C$4:C564,'Evidencija rezultata'!C564)","v":"0"}]
[null,562,{"$f":"'Evidencija rezultata'!C565&COUNTIF('Evidencija rezultata'!$C$4:C565,'Evidencija rezultata'!C565)","v":"0"}]
[null,563,{"$f":"'Evidencija rezultata'!C566&COUNTIF('Evidencija rezultata'!$C$4:C566,'Evidencija rezultata'!C566)","v":"0"}]
[null,564,{"$f":"'Evidencija rezultata'!C567&COUNTIF('Evidencija rezultata'!$C$4:C567,'Evidencija rezultata'!C567)","v":"0"}]
[null,565,{"$f":"'Evidencija rezultata'!C568&COUNTIF('Evidencija rezultata'!$C$4:C568,'Evidencija rezultata'!C568)","v":"0"}]
[null,566,{"$f":"'Evidencija rezultata'!C569&COUNTIF('Evidencija rezultata'!$C$4:C569,'Evidencija rezultata'!C569)","v":"0"}]
[null,567,{"$f":"'Evidencija rezultata'!C570&COUNTIF('Evidencija rezultata'!$C$4:C570,'Evidencija rezultata'!C570)","v":"0"}]
[null,568,{"$f":"'Evidencija rezultata'!C571&COUNTIF('Evidencija rezultata'!$C$4:C571,'Evidencija rezultata'!C571)","v":"0"}]
[null,569,{"$f":"'Evidencija rezultata'!C572&COUNTIF('Evidencija rezultata'!$C$4:C572,'Evidencija rezultata'!C572)","v":"0"}]
[null,570,{"$f":"'Evidencija rezultata'!C573&COUNTIF('Evidencija rezultata'!$C$4:C573,'Evidencija rezultata'!C573)","v":"0"}]
[null,571,{"$f":"'Evidencija rezultata'!C574&COUNTIF('Evidencija rezultata'!$C$4:C574,'Evidencija rezultata'!C574)","v":"0"}]
[null,572,{"$f":"'Evidencija rezultata'!C575&COUNTIF('Evidencija rezultata'!$C$4:C575,'Evidencija rezultata'!C575)","v":"0"}]
[null,573,{"$f":"'Evidencija rezultata'!C576&COUNTIF('Evidencija rezultata'!$C$4:C576,'Evidencija rezultata'!C576)","v":"0"}]
[null,574,{"$f":"'Evidencija rezultata'!C577&COUNTIF('Evidencija rezultata'!$C$4:C577,'Evidencija rezultata'!C577)","v":"0"}]
[null,575,{"$f":"'Evidencija rezultata'!C578&COUNTIF('Evidencija rezultata'!$C$4:C578,'Evidencija rezultata'!C578)","v":"0"}]
[null,576,{"$f":"'Evidencija rezultata'!C579&COUNTIF('Evidencija rezultata'!$C$4:C579,'Evidencija rezultata'!C579)","v":"0"}]
[null,577,{"$f":"'Evidencija rezultata'!C580&COUNTIF('Evidencija rezultata'!$C$4:C580,'Evidencija rezultata'!C580)","v":"0"}]
[null,578,{"$f":"'Evidencija rezultata'!C581&COUNTIF('Evidencija rezultata'!$C$4:C581,'Evidencija rezultata'!C581)","v":"0"}]
[null,579,{"$f":"'Evidencija rezultata'!C582&COUNTIF('Evidencija rezultata'!$C$4:C582,'Evidencija rezultata'!C582)","v":"0"}]
[null,580,{"$f":"'Evidencija rezultata'!C583&COUNTIF('Evidencija rezultata'!$C$4:C583,'Evidencija rezultata'!C583)","v":"0"}]
[null,581,{"$f":"'Evidencija rezultata'!C584&COUNTIF('Evidencija rezultata'!$C$4:C584,'Evidencija rezultata'!C584)","v":"0"}]
[null,582,{"$f":"'Evidencija rezultata'!C585&COUNTIF('Evidencija rezultata'!$C$4:C585,'Evidencija rezultata'!C585)","v":"0"}]
[null,583,{"$f":"'Evidencija rezultata'!C586&COUNTIF('Evidencija rezultata'!$C$4:C586,'Evidencija rezultata'!C586)","v":"0"}]
[null,584,{"$f":"'Evidencija rezultata'!C587&COUNTIF('Evidencija rezultata'!$C$4:C587,'Evidencija rezultata'!C587)","v":"0"}]
[null,585,{"$f":"'Evidencija rezultata'!C588&COUNTIF('Evidencija rezultata'!$C$4:C588,'Evidencija rezultata'!C588)","v":"0"}]
[null,586,{"$f":"'Evidencija rezultata'!C589&COUNTIF('Evidencija rezultata'!$C$4:C589,'Evidencija rezultata'!C589)","v":"0"}]
[null,587,{"$f":"'Evidencija rezultata'!C590&COUNTIF('Evidencija rezultata'!$C$4:C590,'Evidencija rezultata'!C590)","v":"0"}]
[null,588,{"$f":"'Evidencija rezultata'!C591&COUNTIF('Evidencija rezultata'!$C$4:C591,'Evidencija rezultata'!C591)","v":"0"}]
[null,589,{"$f":"'Evidencija rezultata'!C592&COUNTIF('Evidencija rezultata'!$C$4:C592,'Evidencija rezultata'!C592)","v":"0"}]
[null,590,{"$f":"'Evidencija rezultata'!C593&COUNTIF('Evidencija rezultata'!$C$4:C593,'Evidencija rezultata'!C593)","v":"0"}]
[null,591,{"$f":"'Evidencija rezultata'!C594&COUNTIF('Evidencija rezultata'!$C$4:C594,'Evidencija rezultata'!C594)","v":"0"}]
[null,592,{"$f":"'Evidencija rezultata'!C595&COUNTIF('Evidencija rezultata'!$C$4:C595,'Evidencija rezultata'!C595)","v":"0"}]
[null,593,{"$f":"'Evidencija rezultata'!C596&COUNTIF('Evidencija rezultata'!$C$4:C596,'Evidencija rezultata'!C596)","v":"0"}]
[null,594,{"$f":"'Evidencija rezultata'!C597&COUNTIF('Evidencija rezultata'!$C$4:C597,'Evidencija rezultata'!C597)","v":"0"}]
[null,595,{"$f":"'Evidencija rezultata'!C598&COUNTIF('Evidencija rezultata'!$C$4:C598,'Evidencija rezultata'!C598)","v":"0"}]
[null,596,{"$f":"'Evidencija rezultata'!C599&COUNTIF('Evidencija rezultata'!$C$4:C599,'Evidencija rezultata'!C599)","v":"0"}]
[null,597,{"$f":"'Evidencija rezultata'!C600&COUNTIF('Evidencija rezultata'!$C$4:C600,'Evidencija rezultata'!C600)","v":"0"}]
[null,598,{"$f":"'Evidencija rezultata'!C601&COUNTIF('Evidencija rezultata'!$C$4:C601,'Evidencija rezultata'!C601)","v":"0"}]
[null,599,{"$f":"'Evidencija rezultata'!C602&COUNTIF('Evidencija rezultata'!$C$4:C602,'Evidencija rezultata'!C602)","v":"0"}]
[null,600,{"$f":"'Evidencija rezultata'!C603&COUNTIF('Evidencija rezultata'!$C$4:C603,'Evidencija rezultata'!C603)","v":"0"}]
[null,601,{"$f":"'Evidencija rezultata'!C604&COUNTIF('Evidencija rezultata'!$C$4:C604,'Evidencija rezultata'!C604)","v":"0"}]
[null,602,{"$f":"'Evidencija rezultata'!C605&COUNTIF('Evidencija rezultata'!$C$4:C605,'Evidencija rezultata'!C605)","v":"0"}]
[null,603,{"$f":"'Evidencija rezultata'!C606&COUNTIF('Evidencija rezultata'!$C$4:C606,'Evidencija rezultata'!C606)","v":"0"}]
[null,604,{"$f":"'Evidencija rezultata'!C607&COUNTIF('Evidencija rezultata'!$C$4:C607,'Evidencija rezultata'!C607)","v":"0"}]
[null,605,{"$f":"'Evidencija rezultata'!C608&COUNTIF('Evidencija rezultata'!$C$4:C608,'Evidencija rezultata'!C608)","v":"0"}]
[null,606,{"$f":"'Evidencija rezultata'!C609&COUNTIF('Evidencija rezultata'!$C$4:C609,'Evidencija rezultata'!C609)","v":"0"}]
[null,607,{"$f":"'Evidencija rezultata'!C610&COUNTIF('Evidencija rezultata'!$C$4:C610,'Evidencija rezultata'!C610)","v":"0"}]
[null,608,{"$f":"'Evidencija rezultata'!C611&COUNTIF('Evidencija rezultata'!$C$4:C611,'Evidencija rezultata'!C611)","v":"0"}]
[null,609,{"$f":"'Evidencija rezultata'!C612&COUNTIF('Evidencija rezultata'!$C$4:C612,'Evidencija rezultata'!C612)","v":"0"}]
[null,610,{"$f":"'Evidencija rezultata'!C613&COUNTIF('Evidencija rezultata'!$C$4:C613,'Evidencija rezultata'!C613)","v":"0"}]
[null,611,{"$f":"'Evidencija rezultata'!C614&COUNTIF('Evidencija rezultata'!$C$4:C614,'Evidencija rezultata'!C614)","v":"0"}]
[null,612,{"$f":"'Evidencija rezultata'!C615&COUNTIF('Evidencija rezultata'!$C$4:C615,'Evidencija rezultata'!C615)","v":"0"}]
[null,613,{"$f":"'Evidencija rezultata'!C616&COUNTIF('Evidencija rezultata'!$C$4:C616,'Evidencija rezultata'!C616)","v":"0"}]
[null,614,{"$f":"'Evidencija rezultata'!C617&COUNTIF('Evidencija rezultata'!$C$4:C617,'Evidencija rezultata'!C617)","v":"0"}]
[null,615,{"$f":"'Evidencija rezultata'!C618&COUNTIF('Evidencija rezultata'!$C$4:C618,'Evidencija rezultata'!C618)","v":"0"}]
[null,616,{"$f":"'Evidencija rezultata'!C619&COUNTIF('Evidencija rezultata'!$C$4:C619,'Evidencija rezultata'!C619)","v":"0"}]
[null,617,{"$f":"'Evidencija rezultata'!C620&COUNTIF('Evidencija rezultata'!$C$4:C620,'Evidencija rezultata'!C620)","v":"0"}]
[null,618,{"$f":"'Evidencija rezultata'!C621&COUNTIF('Evidencija rezultata'!$C$4:C621,'Evidencija rezultata'!C621)","v":"0"}]
[null,619,{"$f":"'Evidencija rezultata'!C622&COUNTIF('Evidencija rezultata'!$C$4:C622,'Evidencija rezultata'!C622)","v":"0"}]
[null,620,{"$f":"'Evidencija rezultata'!C623&COUNTIF('Evidencija rezultata'!$C$4:C623,'Evidencija rezultata'!C623)","v":"0"}]
[null,621,{"$f":"'Evidencija rezultata'!C624&COUNTIF('Evidencija rezultata'!$C$4:C624,'Evidencija rezultata'!C624)","v":"0"}]
[null,622,{"$f":"'Evidencija rezultata'!C625&COUNTIF('Evidencija rezultata'!$C$4:C625,'Evidencija rezultata'!C625)","v":"0"}]
[null,623,{"$f":"'Evidencija rezultata'!C626&COUNTIF('Evidencija rezultata'!$C$4:C626,'Evidencija rezultata'!C626)","v":"0"}]
[null,624,{"$f":"'Evidencija rezultata'!C627&COUNTIF('Evidencija rezultata'!$C$4:C627,'Evidencija rezultata'!C627)","v":"0"}]
[null,625,{"$f":"'Evidencija rezultata'!C628&COUNTIF('Evidencija rezultata'!$C$4:C628,'Evidencija rezultata'!C628)","v":"0"}]